{"text_format":"1","workbook":"xlsx","n_sheets":4,"sheets":["Cerere de Finantare","Anexa 1","Anexa 2","Anexa 3"],"not_rendered":{"charts":0,"images":6,"macros":1,"external_links":0,"defined_names":3,"comments":0,"pivot_tables":0},"unopened":[],"bounds":{"document_bytes":16777216,"sheet_cells":100000,"rows_first":2000,"rows_last":500,"rows_between":2000,"halvings":0,"cell_chars":16384,"cell_head_chars":4096},"cells_cut":0,"cells_raw":0,"read":"whole","date_system":"1900"}

{"sheet":"Cerere de Finantare","index":0,"n_rows":849,"n_cols":59,"rows_kept":849,"cut":false,"hidden":false,"merged":[[686,42,686,49],[686,50,686,54],[686,55,686,60],[690,0,690,29],[690,30,690,34],[690,35,690,41],[690,42,690,49],[690,50,690,54],[690,55,690,60],[543,2,543,31],[544,2,544,31],[545,2,545,31],[546,2,546,31],[547,2,547,31],[548,2,548,31],[536,32,536,39],[537,32,537,39],[536,40,536,50],[546,51,546,58],[547,51,547,58],[548,51,548,58],[541,32,541,39],[542,32,542,39],[534,0,534,60],[655,17,655,19],[663,55,663,60],[663,30,663,34],[663,35,663,41],[663,42,663,49],[701,55,701,60],[702,0,702,29],[702,30,702,34],[702,35,702,41],[702,42,702,49],[702,50,702,54],[702,55,702,60],[744,0,744,60],[795,0,795,40],[795,41,795,50],[795,51,795,60],[783,41,783,50],[783,51,783,60],[665,0,665,29],[665,30,665,34],[665,35,665,41],[665,42,665,49],[665,55,665,60],[666,0,666,29],[666,30,666,34],[666,35,666,41],[666,42,666,49],[666,55,666,60],[687,0,687,29],[687,30,687,34],[687,35,687,41],[687,42,687,49],[687,50,687,54],[687,55,687,60],[686,0,686,29],[686,30,686,34],[686,35,686,41],[697,55,697,60],[698,0,698,29],[698,30,698,34],[698,35,698,41],[698,42,698,49],[698,50,698,54],[698,55,698,60],[699,0,699,29],[699,30,699,34],[699,35,699,41],[699,42,699,49],[699,50,699,54],[699,55,699,60],[838,20,838,59],[846,13,846,34],[703,0,703,29],[703,30,703,34],[703,35,703,41],[703,42,703,49],[703,50,703,54],[703,55,703,60],[700,0,700,29],[700,30,700,34],[700,35,700,41],[700,42,700,49],[700,50,700,54],[700,55,700,60],[701,0,701,29],[701,30,701,34],[701,35,701,41],[701,42,701,49],[701,50,701,54],[745,35,745,43],[696,30,696,34],[696,35,696,41],[696,42,696,49],[696,50,696,54],[696,55,696,60],[772,2,772,25],[772,26,772,40],[773,0,773,1],[773,2,773,25],[773,26,773,40],[774,0,774,1],[764,0,764,60],[765,0,765,60],[766,0,766,60],[767,0,767,60],[772,41,772,50],[772,51,772,60],[773,41,773,50],[773,51,773,60],[772,0,772,1],[757,0,758,16],[757,17,757,49],[758,17,758,49],[757,50,757,60],[758,50,758,60],[756,0,756,49],[697,0,697,29],[697,30,697,34],[697,35,697,41],[697,42,697,49],[697,50,697,54],[691,35,691,41],[691,42,691,49],[691,50,691,54],[691,55,691,60],[688,30,688,34],[688,35,688,41],[688,42,688,49],[688,50,688,54],[688,55,688,60],[689,0,689,29],[689,30,689,34],[689,35,689,41],[689,42,689,49],[689,50,689,54],[689,55,689,60],[778,0,778,1],[779,0,779,1],[778,30,778,31],[779,30,779,31],[693,0,693,29],[693,30,693,34],[693,35,693,41],[693,42,693,49],[693,50,693,54],[693,55,693,60],[695,0,695,29],[695,30,695,34],[695,35,695,41],[695,42,695,49],[695,50,695,54],[695,55,695,60],[696,0,696,29],[692,0,692,29],[692,30,692,34],[692,35,692,41],[692,42,692,49],[692,50,692,54],[692,55,692,60],[688,0,688,29],[681,30,681,34],[681,35,681,41],[681,42,681,49],[681,50,681,54],[681,55,681,60],[683,30,683,34],[683,35,683,41],[683,42,683,49],[683,50,683,54],[683,55,683,60],[684,30,684,34],[684,35,684,41],[684,42,684,49],[684,50,684,54],[684,55,684,60],[685,0,685,29],[685,30,685,34],[685,35,685,41],[685,42,685,49],[685,50,685,54],[685,55,685,60],[684,0,684,29],[682,0,682,29],[691,0,691,29],[691,30,691,34],[677,30,677,34],[677,35,677,41],[677,42,677,49],[677,50,677,54],[677,55,677,60],[678,30,678,34],[678,35,678,41],[678,42,678,49],[678,50,678,54],[678,55,678,60],[679,0,679,29],[679,30,679,34],[679,35,679,41],[679,42,679,49],[679,50,679,54],[679,55,679,60],[680,0,680,29],[680,30,680,34],[680,35,680,41],[680,42,680,49],[680,50,680,54],[680,55,680,60],[673,30,673,34],[673,35,673,41],[673,42,673,49],[673,50,673,54],[673,55,673,60],[675,30,675,34],[675,35,675,41],[675,42,675,49],[675,50,675,54],[675,55,675,60],[674,30,674,34],[674,35,674,41],[674,42,674,49],[674,50,674,54],[674,55,674,60],[676,30,676,34],[676,35,676,41],[676,42,676,49],[676,50,676,54],[676,55,676,60],[669,35,669,41],[669,42,669,49],[669,50,669,54],[669,55,669,60],[670,30,670,34],[670,35,670,41],[670,42,670,49],[670,50,670,54],[670,55,670,60],[671,30,671,34],[671,35,671,41],[671,42,671,49],[671,50,671,54],[671,55,671,60],[672,30,672,34],[672,35,672,41],[672,42,672,49],[672,50,672,54],[672,55,672,60],[545,40,545,50],[546,40,546,50],[547,40,547,50],[548,40,548,50],[536,51,536,58],[538,32,538,39],[539,32,539,39],[540,32,540,39],[552,0,558,59],[650,0,650,29],[651,0,651,29],[550,0,550,59],[536,2,536,31],[537,2,537,31],[538,2,538,31],[539,2,539,31],[540,2,540,31],[541,2,541,31],[650,30,651,60],[589,0,589,34],[589,35,589,43],[589,44,589,51],[589,52,589,60],[564,0,564,34],[582,0,582,34],[582,35,582,43],[582,44,582,51],[582,52,582,60],[574,52,574,60],[575,0,575,34],[575,35,575,43],[542,2,542,31],[662,0,662,29],[662,30,662,34],[662,35,662,41],[662,42,662,49],[662,50,662,54],[662,55,662,60],[539,51,539,58],[540,51,540,58],[541,51,541,58],[542,51,542,58],[544,32,544,39],[545,32,545,39],[546,32,546,39],[547,32,547,39],[548,32,548,39],[794,41,794,50],[794,51,794,60],[793,0,793,40],[793,41,793,50],[793,51,793,60],[792,0,792,40],[792,41,792,50],[792,51,792,60],[791,0,791,40],[791,41,791,50],[791,51,791,60],[672,0,672,29],[675,0,675,29],[673,0,673,29],[674,0,674,29],[683,0,683,29],[681,0,681,29],[664,30,664,34],[664,35,664,41],[664,42,664,49],[668,50,668,54],[668,55,668,60],[669,30,669,34],[667,30,667,34],[667,35,667,41],[667,42,667,49],[667,50,667,54],[667,55,667,60],[668,30,668,34],[668,35,668,41],[668,42,668,49],[7,36,8,60],[13,36,21,60],[783,2,783,40],[543,32,543,39],[537,51,537,58],[538,51,538,58],[750,0,750,60],[751,0,751,60],[752,0,755,16],[763,0,763,60],[752,17,752,49],[753,17,753,49],[754,17,754,49],[755,17,755,49],[752,50,752,60],[753,50,753,60],[754,50,754,60],[755,50,755,60],[784,2,784,40],[785,2,785,40],[784,0,784,1],[784,41,784,50],[784,51,784,60],[785,0,785,1],[785,41,785,50],[785,51,785,60],[783,0,783,1],[779,51,779,57],[781,41,781,50],[781,0,781,40],[782,41,782,50],[781,51,782,60],[782,0,782,27],[774,41,774,50],[774,51,774,60],[778,2,778,19],[779,2,779,19],[779,32,779,50],[778,20,778,26],[779,20,779,26],[778,58,778,60],[776,0,776,60],[777,51,777,60],[777,20,777,29],[777,0,777,19],[777,30,777,50],[797,0,797,40],[799,0,799,60],[800,0,800,60],[801,0,801,60],[788,0,788,1],[788,41,788,50],[788,51,788,60],[789,0,789,1],[789,41,789,50],[789,51,789,60],[790,0,790,1],[790,41,790,50],[790,51,790,60],[797,41,797,50],[797,51,797,60],[787,41,787,50],[787,51,787,60],[796,0,796,40],[796,41,796,50],[796,51,796,60],[794,0,794,40],[788,2,788,40],[789,2,789,40],[756,50,756,60],[846,0,846,12],[844,43,844,46],[844,47,844,56],[820,30,820,36],[820,38,820,45],[820,47,820,56],[822,0,822,10],[822,11,822,21],[822,23,822,25],[822,26,822,36],[822,38,822,42],[822,43,822,59],[811,0,811,14],[812,0,812,14],[814,0,814,14],[816,0,816,4],[816,5,816,12],[816,14,816,17],[816,18,816,31],[816,33,816,37],[816,38,816,57],[818,0,818,4],[818,5,818,18],[818,21,818,23],[818,25,818,37],[818,39,818,42],[818,44,818,59],[810,15,810,59],[812,15,812,59],[803,0,803,60],[804,0,804,60],[848,0,848,7],[834,12,834,59],[836,12,836,59],[102,1,106,13],[94,1,98,13],[824,0,824,38],[824,40,824,59],[826,0,826,5],[828,0,828,19],[828,20,828,30],[778,32,778,50],[790,2,790,40],[826,6,826,30],[830,0,830,51],[830,52,830,59],[832,0,832,5],[832,6,832,59],[840,0,840,3],[840,4,840,14],[840,15,840,59],[842,0,842,60],[844,0,844,10],[844,12,844,27],[820,0,820,2],[820,3,820,6],[820,8,820,9],[820,10,820,12],[820,14,820,15],[820,16,820,17],[820,19,820,20],[820,21,820,23],[820,25,820,28],[805,0,805,60],[806,0,806,60],[807,0,807,60],[808,0,808,60],[809,0,809,60],[810,0,810,14],[759,0,760,16],[759,17,759,49],[759,50,759,60],[760,17,760,49],[760,50,760,60],[761,0,761,16],[761,17,761,49],[761,50,761,60],[762,0,762,60],[774,2,774,25],[774,26,774,40],[786,0,786,60],[787,0,787,40],[769,0,769,60],[770,51,770,60],[770,41,770,50],[770,0,770,40],[771,41,771,50],[771,51,771,60],[779,58,779,60],[778,51,778,57],[771,2,771,25],[771,0,771,1],[771,26,771,40],[778,27,778,29],[779,27,779,29],[305,35,305,43],[305,44,305,51],[305,52,305,60],[306,0,306,34],[306,35,306,43],[306,44,306,51],[307,35,307,43],[307,44,307,51],[307,52,307,60],[308,0,308,34],[308,35,308,43],[308,44,308,51],[300,35,300,60],[240,4,240,40],[238,19,238,41],[238,42,238,48],[238,49,238,55],[239,14,239,18],[239,19,239,41],[239,42,239,48],[239,49,239,55],[239,1,239,13],[261,1,297,59],[301,0,301,60],[303,15,303,21],[303,22,303,27],[303,47,303,56],[305,0,305,34],[303,29,303,45],[234,42,234,48],[234,49,234,55],[233,1,233,13],[234,1,234,13],[235,1,235,13],[236,1,236,13],[237,1,237,13],[238,1,238,13],[233,14,233,18],[235,14,235,18],[238,14,238,18],[233,56,233,59],[234,56,236,59],[237,56,239,59],[235,19,235,41],[235,42,235,48],[235,49,235,55],[236,14,236,18],[236,19,236,41],[236,42,236,48],[236,49,236,55],[237,14,237,18],[237,19,237,41],[237,42,237,48],[237,49,237,55],[233,19,233,41],[233,42,233,48],[233,49,233,55],[234,14,234,18],[234,19,234,41],[225,2,225,60],[229,1,230,13],[229,14,229,55],[229,56,230,59],[230,14,230,18],[230,19,230,41],[230,42,230,48],[230,49,230,55],[231,1,231,13],[231,14,231,18],[231,19,231,41],[231,42,231,48],[231,49,231,55],[231,56,232,59],[232,1,232,13],[232,14,232,18],[232,19,232,41],[232,42,232,48],[232,49,232,55],[218,2,218,56],[219,2,219,56],[221,2,221,27],[221,31,221,56],[222,2,222,27],[222,31,222,56],[211,1,211,23],[208,38,208,50],[209,38,209,50],[213,0,213,60],[215,2,215,27],[215,31,215,56],[216,31,216,56],[216,2,216,27],[209,1,209,13],[209,20,209,32],[224,0,224,60],[208,1,208,13],[208,20,208,32],[199,21,199,26],[200,21,201,26],[200,18,201,20],[207,1,207,9],[206,36,206,44],[203,1,203,37],[204,1,204,19],[204,22,204,39],[204,42,204,58],[205,1,205,19],[205,22,205,39],[205,42,205,58],[206,1,206,9],[207,12,207,27],[206,30,206,33],[206,12,206,27],[207,30,207,33],[207,36,207,45],[206,54,206,58],[206,48,206,51],[207,48,207,51],[207,54,207,58],[188,4,188,13],[188,16,188,23],[188,26,188,34],[187,47,189,57],[188,36,188,46],[191,0,191,60],[192,1,192,32],[182,1,182,58],[183,1,183,58],[185,3,186,13],[185,14,186,24],[185,25,186,35],[185,36,186,46],[185,47,185,57],[186,47,186,57],[200,28,201,34],[199,37,199,48],[200,37,201,48],[199,51,199,58],[200,51,201,58],[194,3,194,10],[195,3,195,16],[194,24,194,49],[199,4,199,15],[199,28,199,34],[200,4,200,6],[200,7,200,9],[200,10,200,15],[201,4,201,6],[201,7,201,9],[201,10,201,15],[199,18,199,20],[174,1,174,19],[174,22,174,39],[174,42,174,58],[179,1,179,13],[180,1,180,13],[179,20,179,32],[180,20,180,32],[179,36,179,58],[180,36,180,58],[175,1,175,9],[175,52,175,58],[176,1,176,9],[176,52,176,58],[175,15,175,45],[176,15,176,45],[177,1,177,9],[178,1,178,9],[177,17,177,25],[178,17,178,25],[177,46,177,54],[178,46,178,54],[168,40,168,58],[156,1,156,6],[156,12,156,59],[159,1,159,18],[159,30,159,51],[161,0,161,60],[165,43,165,58],[170,17,170,30],[170,1,170,16],[162,0,162,60],[163,1,163,18],[164,1,165,15],[164,19,164,39],[165,19,165,39],[164,43,164,58],[173,1,173,19],[173,22,173,39],[173,42,173,58],[172,1,172,41],[129,40,129,48],[128,18,128,22],[128,1,128,3],[128,12,128,16],[128,5,128,10],[148,1,148,22],[150,1,150,22],[151,1,151,6],[151,12,151,59],[154,1,154,18],[154,30,154,51],[148,41,148,48],[148,51,148,58],[166,2,166,14],[166,19,166,39],[166,43,166,58],[129,51,129,59],[129,1,129,24],[130,1,147,59],[18,0,18,7],[15,30,15,34],[16,30,16,34],[17,30,17,34],[14,6,14,8],[15,6,15,8],[16,6,16,8],[14,9,14,11],[14,12,14,14],[15,12,15,14],[14,27,14,28],[15,27,15,28],[14,24,14,26],[15,24,15,26],[16,12,16,14],[0,6,0,60],[1,6,1,60],[7,0,7,34],[8,0,8,34],[10,7,10,34],[10,0,10,5],[6,36,6,60],[3,42,3,60],[12,0,12,5],[12,7,13,7],[12,9,13,9],[12,10,13,10],[12,12,13,12],[5,0,6,34],[5,36,5,60],[13,0,13,5],[12,21,13,21],[15,9,15,11],[18,9,18,20],[10,36,10,60],[11,36,12,60],[15,20,15,23],[16,20,16,23],[17,20,17,23],[14,15,14,18],[15,15,15,18],[12,13,13,13],[12,15,13,15],[12,16,13,16],[12,17,13,17],[12,18,13,18],[12,20,13,20],[12,30,13,30],[12,31,13,31],[12,32,13,32],[12,33,13,33],[12,34,13,34],[14,30,14,34],[14,20,14,23],[12,22,13,22],[12,23,13,23],[12,25,13,25],[12,27,13,27],[12,28,13,28],[19,0,19,21],[20,0,20,7],[21,0,21,21],[42,1,42,16],[68,50,68,58],[66,27,66,40],[66,41,66,59],[64,2,64,19],[65,0,65,15],[66,0,66,12],[66,13,66,25],[68,1,68,13],[68,15,68,25],[68,27,68,37],[68,39,68,48],[80,15,80,25],[80,27,80,37],[39,48,39,59],[40,48,40,59],[48,1,61,59],[62,1,62,22],[29,10,38,59],[96,15,96,25],[96,27,96,37],[96,39,96,48],[41,1,41,59],[43,1,46,59],[96,50,96,58],[109,1,109,22],[104,27,104,37],[104,39,104,48],[104,50,104,58],[104,15,104,25],[47,1,47,22],[25,1,25,7],[22,0,22,16],[23,0,23,60],[25,10,25,60],[111,23,111,25],[86,1,90,13],[80,39,80,48],[72,15,72,25],[72,27,72,37],[72,39,72,48],[72,50,72,58],[88,15,88,25],[88,27,88,37],[88,39,88,48],[88,50,88,58],[80,50,80,58],[78,1,82,13],[70,1,74,13],[111,26,127,59],[116,6,118,25],[654,0,654,29],[656,0,656,29],[661,0,661,29],[445,0,445,3],[445,4,445,41],[445,42,445,50],[445,51,445,60],[446,0,446,3],[446,4,446,41],[446,42,446,50],[446,51,446,60],[447,0,447,3],[447,4,447,41],[447,42,447,50],[447,51,447,60],[448,0,448,3],[448,4,448,41],[448,42,448,50],[537,40,537,50],[538,40,538,50],[539,40,539,50],[540,40,540,50],[541,40,541,50],[542,40,542,50],[543,40,543,50],[543,51,543,58],[544,51,544,58],[545,51,545,58],[448,51,448,60],[449,0,449,60],[660,0,660,29],[544,40,544,50],[652,30,655,60],[655,0,655,16],[657,0,658,54],[657,55,657,60],[658,55,658,60],[659,0,659,60],[660,30,660,34],[660,35,660,41],[660,42,660,49],[660,50,660,54],[660,55,660,60],[661,30,661,49],[661,50,661,60],[694,0,694,29],[694,30,694,34],[694,35,694,41],[694,42,694,49],[694,50,694,54],[694,55,694,60],[676,0,676,29],[677,0,677,29],[678,0,678,29],[663,0,663,29],[667,0,667,29],[668,0,668,29],[669,0,669,29],[670,0,670,29],[671,0,671,29],[664,50,664,54],[664,55,664,60],[664,0,664,29],[653,0,653,29],[705,0,705,60],[707,0,707,60],[716,3,716,60],[714,3,714,60],[715,3,715,60],[712,3,712,60],[711,0,711,60],[710,31,710,59],[709,0,709,60],[713,0,713,60],[706,1,706,34],[708,1,708,59],[710,1,710,28],[704,0,704,60],[738,0,738,60],[737,0,737,51],[737,52,737,58],[739,3,739,60],[740,3,740,60],[736,52,736,58],[741,0,741,30],[717,0,717,60],[723,0,723,2],[724,0,724,2],[725,0,725,2],[726,0,726,2],[727,0,727,2],[728,0,728,2],[729,0,729,2],[730,0,730,2],[731,0,731,2],[732,0,732,2],[733,0,733,2],[734,0,734,2],[735,0,735,2],[718,3,718,60],[719,3,719,60],[720,3,720,60],[721,3,721,60],[722,3,722,60],[195,24,195,49],[170,48,170,55],[177,32,177,34],[178,32,178,34],[177,39,177,41],[178,39,178,41],[742,1,742,31],[741,41,741,52],[742,41,742,50],[723,5,723,60],[724,5,724,60],[725,5,725,60],[726,5,726,60],[727,5,727,60],[728,5,728,60],[729,5,729,60],[730,5,730,60],[731,5,731,60],[732,5,732,60],[733,5,733,60],[734,5,734,60],[735,5,735,60],[306,52,306,60],[307,0,307,34],[308,52,308,60],[309,0,309,34],[309,35,309,43],[309,44,309,51],[309,52,309,60],[310,0,310,34],[310,35,310,43],[310,44,310,51],[310,52,310,60],[311,0,311,34],[311,35,311,43],[311,44,311,51],[311,52,311,60],[312,0,312,34],[312,35,312,43],[312,44,312,51],[312,52,312,60],[313,0,313,34],[313,35,313,43],[313,44,313,51],[313,52,313,60],[314,0,314,34],[314,35,314,43],[314,44,314,51],[314,52,314,60],[315,0,315,34],[315,35,315,43],[315,44,315,51],[315,52,315,60],[316,0,316,34],[316,35,316,43],[316,44,316,51],[316,52,316,60],[317,0,317,34],[317,35,317,43],[317,44,317,51],[317,52,317,60],[318,0,318,34],[318,35,318,43],[318,44,318,51],[318,52,318,60],[319,0,319,34],[319,35,319,43],[319,44,319,51],[319,52,319,60],[320,0,320,34],[320,35,320,43],[320,44,320,51],[320,52,320,60],[321,0,321,34],[321,35,321,43],[321,44,321,51],[321,52,321,60],[322,0,322,34],[322,35,322,43],[322,44,322,51]],"merged_total":1956,"flags":["merged_cut"]}
[]
[]
[]
[null,null,null,null,null,null,null,null,null,null,null,null,null,null,null,null,null,null,null,null,null,null,null,null,null,null,null,null,null,null,null,null,null,null,null,null,null,null,null,null,null,null,"SECŢIUNE GENERALĂ"]
[]
["DATE DE ÎNREGISTRARE",null,null,null,null,null,null,null,null,null,null,null,null,null,null,null,null,null,null,null,null,null,null,null,null,null,null,null,null,null,null,null,null,null,null,null,"NUME ŞI PRENUME DIRECTOR GENERAL"]
[null,null,null,null,null,null,null,null,null,null,null,null,null,null,null,null,null,null,null,null,null,null,null,null,null,null,null,null,null,null,null,null,null,null,null,null,"ADJUNCT CRFIR"]
["Se completează de către Agenția pentru Finanțarea Investițiilor Rurale -"]
["Centrul Regional - Programul FEADR 2014-2020"]
[]
["CRFIR",null,null,null,null,null,null,null,null,null,null,null,null,null,null,null,null,null,null,null,null,null,null,null,null,null,null,null,null,null,null,null,null,null,null,null,"Semnătura Director General Adjunct CRFIR"]
[null,null,null,null,null,null,null,null,null,null,null,null,null,null,null,null,null,null,null,null,null,null,null,null,null,null,null,null,null,null,null,null,null,null,null,null,"Ştampila CRFIR"]
["Număr "]
["înregistrare"]
[]
[]
[]
[]
["Data Înregistrării"]
["Numele şi prenumele persoanei care înregistrează"]
["Semnătura:"]
["Data primirii cererii de finanţare la contractare:"]
["Se completează de către solicitant"]
["A PREZENTARE GENERALĂ"]
[]
[null,"A1 Măsura:",null,null,null,null,null,null,null,null,"Sub-măsura 19.2"]
[null,null,null,null,null,null,null,null,null,null,"Masura M5/1B/6B - „Promovarea și facilitarea valorificării produselor locale”"]
[]
[]
[null,null,null,null,null,null,null,null,null,null,"- Investiții în spații de prezentare a produselor locale (amenajare; mijloace moderne de expunere și promovare; echipamente IT și birotică; mobilier; chirie, etc.);\n- Crearea unui centru virtual de promovare și facilitare / mijlocire a procesului de valorificare a produselor locale, bazat pe un portal de prezentare complex, cu newsletter și forum de discuții;\n- Organizarea și participarea la evenimente inedite de promovare și valorificare a produselor locale (expoziții, festivaluri, evenimente, etc.), atât în, cât și în afara teritoriului GAL FS-TP;\n- Acțiuni privind crearea unei rețele a actorilor locali (producători, artizani, meșteșugari etc.);\n- Facilitarea includerii produselor locale în unitățile turistice și agroturistice din teritoriul GAL FS-TP și a promovării și valorificării pe plan local;\n- Promovarea produselor locale în contextul brand-ului teritoriului;\n- Acțiuni de animare și promovare în rândul producătorilor locali;\n- Realizarea de materiale suport specifice (broșuri, pliante, panouri de informare cu cod QR, stand prezentare etc.)."]
[]
[]
[null,"Tip investitie:"]
[]
[]
[]
[]
[]
[]
[null,null,null,null,null,null,null,null,null,null,"Conţinutul cadru al documentaţiei tehnico-economice faza SF/DALI conform HG 907/2016"]
[null,"A2 Nume prenume / Denumire solicitant:"]
[]
[null,"A3 Titlu proiect:"]
[]
[]
[]
[]
[null,"A4 Descrierea succintă a proiectului:"]
[]
[]
[]
[]
[]
[]
[]
[]
[]
[]
[]
[]
[]
[]
[]
[]
[null,null,"A5 Amplasarea proiectului:"]
[]
["Regiunea de dezvoltare:",null,null,null,null,null,null,null,null,null,null,null,null,null,null,null,null,null,null,null,null,null,null,null,null,null,null,"Judeţ/Municipiul Bucureşti:"]
[]
[null,"Obiectivele investiţiei",null,null,null,null,null,null,null,null,null,null,null,null,null,"Judeţ",null,null,null,null,null,null,null,null,null,null,null,"Comună/Oraş",null,null,null,null,null,null,null,null,null,null,null,"Sat/Sector",null,null,null,null,null,null,null,null,null,null,"Sat/Sector"]
[]
[]
[]
[null,null,null,null,null,null,null,null,null,null,null,null,null,null,null,"Arges"]
[]
[]
[]
[]
[]
[]
[]
[null,null,null,null,null,null,null,null,null,null,null,null,null,null,null,"Arges"]
[]
[]
[]
[]
[]
[]
[]
[null,null,null,null,null,null,null,null,null,null,null,null,null,null,null,"Arges"]
[]
[]
[]
[]
[]
[]
[]
[null,null,null,null,null,null,null,null,null,null,null,null,null,null,null,"Arges"]
[]
[]
[]
[]
[]
[]
[]
[null,null,null,null,null,null,null,null,null,null,null,null,null,null,null,"Arges"]
[]
[]
[]
[]
[null,"A6 Date despre tipul de proiect şi beneficiar:"]
[]
[null,"A6.1",null,null,null,null,"Proiect cu construcţii-montaj",null,null,null,null,null,null,null,null,null,null,null,null,null,null,null,null,"A6.3",null,null,"- Investiții în spații de prezentare a produselor locale (amenajare; mijloace moderne de expunere și promovare; echipamente IT și birotică; mobilier; chirie, etc.);\n- Crearea unui centru virtual de promovare și facilitare / mijlocire a procesului de valorificare a produselor locale, bazat pe un portal de prezentare complex, cu newsletter și forum de discuții;\n- Organizarea și participarea la evenimente inedite de promovare și valorificare a produselor locale (expoziții, festivaluri, evenimente, etc.), atât în, cât și în afara teritoriului GAL FS-TP;\n- Acțiuni privind crearea unei rețele a actorilor locali (producători, artizani, meșteșugari etc.);\n- Facilitarea includerii produselor locale în unitățile turistice și agroturistice din teritoriul GAL FS-TP și a promovării și valorificării pe plan local;\n- Promovarea produselor locale în contextul brand-ului teritoriului;\n- Acțiuni de animare și promovare în rândul producătorilor locali;\n- Realizarea de materiale suport specifice (broșuri, pliante, panouri de informare cu cod QR, stand prezentare etc.)."]
[null,null,null,null,null,null,"Proiect fără construcţii-montaj"]
[]
[]
[]
[null,"A6.2",null,null,null,null,"Entități private de tip ONG (asociații și fundații)"]
[]
[]
[]
[]
[]
[]
[]
[]
[]
[]
[]
[null,"A6.4",null,null,null,"Prescorare",null,null,null,null,null,null,null,null,null,null,null,null,null,null,null,null,null,null,null,null,null,"A6.5",null,null,"Alocare financiară",null,null,null,null,null,null,null,null,null,"Teritoriul GAL Fagarasul de Sud - Tinutul Posadelor"]
[null,"A6.4.1 Detaliere criterii de selecţie îndeplinite:"]
[]
[]
[]
[]
[]
[]
[]
[]
[]
[]
[]
[]
[]
[]
[]
[]
[]
[]
[]
[]
[null,"A7 Date despre consultant:"]
[null,"Denumire: "]
[null,"Cod Unic de Înregistrare / Codul de"]
[null,"Înregistrare Fiscală",null,null,null,null,null,null,null,null,null,null,null,null,null,null,null,null,null,null,null,null,null,null,null,null,null,null,null,null,"Număr de înregistrare în registrul comerțului"]
[]
[null,"A8 Date despre proiectant:"]
[null,"Denumire: "]
[null,"Cod Unic de Înregistrare / Codul de"]
[null,"Înregistrare Fiscală",null,null,null,null,null,null,null,null,null,null,null,null,null,null,null,null,null,null,null,null,null,null,null,null,null,null,null,null,"Număr de înregistrare în registrul comerțului"]
[]
[]
["B INFORMAŢII PRIVIND SOLICITANTUL"]
["B1 Descrierea solicitantului"]
[null,"B1.1 Informaţii privind solicitantul"]
[null,"Data înființării",null,null,null,null,null,null,null,null,null,null,null,null,null,null,null,null,null,"Cod Unic de Înregistrare și/sau Codul de",null,null,null,null,null,null,null,null,null,null,null,null,null,null,null,null,null,null,null,null,null,null,null,"Statut juridic al solicitantului"]
[null,null,null,null,null,null,null,null,null,null,null,null,null,null,null,null,null,null,null,"Înregistrare Fiscală",null,null,null,null,null,null,null,null,null,null,null,null,null,null,null,null,null,null,null,null,null,null,null,"(Comune, ADI, ONG*)"]
[]
[]
[null,"Număr de înregistrare în registrul comerțului/Registrul asociațiilor și fundațiilor"]
[]
[null,"Codul unic de înregistrare APIA",null,null,null,null,null,null,null,null,null,null,null,null,null,null,null,null,null,null,null,null,null,null,null,null,null,null,null,null,null,null,null,null,null,null,"Anul atribuirii codului"]
[]
[null,"B1.2 Sediul social / Domiciliul stabil al solicitantului / Reşedinţa din România"]
[null,"Judeţ",null,null,null,null,null,null,null,null,null,null,null,null,null,null,null,null,null,null,null,null,"Localitate",null,null,null,null,null,null,null,null,null,null,null,null,null,null,null,null,null,null,null,"Sat"]
[]
[null,"Cod Poştal",null,null,null,null,null,null,null,null,null,null,null,null,null,"Strada",null,null,null,null,null,null,null,null,null,null,null,null,null,null,null,null,null,null,null,null,null,null,null,null,null,null,null,null,null,null,null,null,null,null,null,null,"Nr."]
[]
[null,"Bloc",null,null,null,null,null,null,null,null,null,null,null,null,null,null,null,"Scara",null,null,null,null,null,null,null,null,null,null,null,null,null,null,"Et. ",null,null,null,null,null,null,"Ap.",null,null,null,null,null,null,"Sector"]
[]
[null,"Telefon fix/ mobil",null,null,null,null,null,null,null,null,null,null,null,null,null,null,null,null,null,null,"Fax",null,null,null,null,null,null,null,null,null,null,null,null,null,null,null,"E-mail"]
[]
[]
[null,"B1.3 Numele şi prenumele reprezentantului legal şi funcţia acestuia în cadrul organizaţiei, precum şi"]
[null,"specimenul de semnatură:"]
[]
[null,null,null,"Numele",null,null,null,null,null,null,null,null,null,null,"Prenumele",null,null,null,null,null,null,null,null,null,null,"Funcţia",null,null,null,null,null,null,null,null,null,null,"Reprezentant legal",null,null,null,null,null,null,null,null,null,null,"Specimen de"]
[null,null,null,null,null,null,null,null,null,null,null,null,null,null,null,null,null,null,null,null,null,null,null,null,null,null,null,null,null,null,null,null,null,null,null,null,null,null,null,null,null,null,null,null,null,null,null,"semnătură"]
[]
[null,null,null,null,null,null,null,null,null,null,null,null,null,null,null,null,null,null,null,null,null,null,null,null,null,null,null,null,null,null,null,null,null,null,null,null,"LEGAL"]
[]
[]
["B2 Informaţii referitoare la reprezentantul legal de proiect"]
[null,"B2.1 Date de identitate ale reprezentantului legal de proiect"]
[]
[null,null,null,"Data naşterii",null,null,null,null,null,null,null,null,null,null,null,null,null,null,null,null,null,null,null,null,"Cod numeric personal"]
[]
[]
[]
[]
[null,null,null,null,"Act de identitate",null,null,null,null,null,null,null,null,null,null,null,null,null,"Seria",null,null,"Nr.",null,null,null,null,null,null,"Eliberat la data de",null,null,null,null,null,null,null,null,"de:",null,null,null,null,null,null,null,null,null,null,null,null,null,"Valabil până la:"]
[null,null,null,null,"B.I.",null,null,"C.I.",null,null,"Paşaport"]
[]
[]
[null,"B2.2 Domiciliul stabil al reprezentantului legal de proiect"]
[null,"Judeţ",null,null,null,null,null,null,null,null,null,null,null,null,null,null,null,null,null,null,null,null,"Localitate",null,null,null,null,null,null,null,null,null,null,null,null,null,null,null,null,null,null,null,"Sat"]
[]
[null,"Cod Poştal",null,null,null,null,null,null,null,null,null,null,"Strada",null,null,null,null,null,null,null,null,null,null,null,null,null,null,null,null,null,"Nr.",null,null,null,null,null,"Bloc",null,null,null,null,null,null,null,null,null,null,null,"Scara",null,null,null,null,null,"Ap."]
[]
[null,"Telefon fix",null,null,null,null,null,null,null,null,null,null,null,null,null,null,null,null,null,null,"Telefon mobil",null,null,null,null,null,null,null,null,null,null,null,null,null,null,null,null,null,"Fax"]
[]
[null,"E-mail"]
[]
[]
["B3 Informaţii privind contul bancar pentru proiect F.E.A.D.R."]
[]
[null,null,"B3.1 Denumirea Băncii",null,null,null,null,null,null,null,null,null,null,null,null,null,null,null,null,null,null,null,null,null,null,null,null,null,null,null,null,"Denumirea Sucursalei/Filialei"]
[]
[]
[null,null,"B3.2 Adresa Băncii/Sucursalei"]
[]
[]
[null,null,"B3.3 Cod IBAN",null,null,null,null,null,null,null,null,null,null,null,null,null,null,null,null,null,null,null,null,null,null,null,null,null,null,null,null,"B3.4 Titularul contului bancar"]
[]
[]
["C FINANȚĂRI NERAMBURSABILE solicitate şi/sau obţinute"]
[null,null,"C. Solicitantul a mai obţinut finanţări nerambursabile? Dacă Da, detaliaţi cu datele solicitate în tabelul de mai jos."]
[]
[null,null,null,null,null,null,null,null,null,null,"DA",null,null,null,null,null,null,null,"NU"]
[]
[null,"DENUMIRE PROGRAM FINANȚARE",null,null,null,null,null,null,null,null,null,null,null,null,"DA",null,null,null,null,null,null,null,null,null,null,null,null,null,null,null,null,null,null,null,null,null,null,null,null,null,null,null,null,null,null,null,null,null,null,null,null,null,null,null,null,null,"NU"]
[null,null,null,null,null,null,null,null,null,null,null,null,null,null,"Număr proiecte",null,null,null,null,"Titlul proiectului și numărul contractului de finanțare ",null,null,null,null,null,null,null,null,null,null,null,null,null,null,null,null,null,null,null,null,null,null,"Data finalizării\nll/zz/aaaa",null,null,null,null,null,null,"Valoarea\nsprijinului\n(EUR)"]
[null,"Program Naţional*"]
[null,"Program Naţional*"]
[null,"FEADR*"]
[null,"SAPARD"]
[null,"Alte programe europene*"]
[null,"Alte programe europene*"]
[null,"Alte programe internaţionale*"]
[null,"Alte programe internaţionale*"]
[null,"Alte programe internaţionale*"]
[null,null,null,null,"* se completează de către solicitant cu denumirea programului"]
[]
[]
[]
[]
[]
[]
[]
[]
[]
[]
[]
[]
[]
[]
[]
[]
[]
[]
[]
[]
[null,"REGULI DE COMPLETARE\n\nCâmpurile \"Numele şi prenumele persoanei care înregistrează. Semnătura\", se vor completa după data primirii în format letric a acesteia împreună cu documentele justificative.\n\nCompletati devizele aferente capitolelor de cheltuieli, defalcat pe cheltuieli eligibile si neeligibile prin completarea tabelelor incluse in acest document.\n\nCâmpurile \"Prescorare\" şi \"Detaliere criterii de selecţie îndeplinite\" de la sectiunea A6 sunt obligatorii.\n\nTrebuie bifate si anexate toate documentele (6.1, 10 şi 18) de pe coloana “DEPUNERE - Obligatoriu pentru toate proiectele” din sectiunea E – Lista documentelor anexate.\n\nDocumentele (1.1, 1.2, 2, 3.1, 3.2, 5.1, 5.2, 6.2, 6.2.1, 6.2.2, 6.2.3, 11.1, 11.2, 12, 13, 14,15, 15.1, 16, 20) de pe coloana \"DEPUNERE Obligatoriu daca proiectul o impune\" din sectiunea E – Lista documentelor anexate - trebuie bifate şi anexate dacă proiectul o impune.\n\n"]
[]
[]
[]
[]
[]
[]
[]
[]
[]
[]
[]
[]
[]
[]
[]
[]
[]
[]
[]
[]
[]
[]
[]
[]
[]
[]
[]
[]
[]
[]
[]
[]
[]
[]
[]
[]
[]
[]
["Buget Indicativ - HG 907/2016"]
[]
[]
[null,null,null,null,null,null,null,null,null,null,null,null,null,null,null,"Curs EURO",null,null,null,null,null,null,null,null,null,null,null,null,null,"Data întocmirii devizului general din SF"]
[]
["Măsura"]
["Denumirea capitolelor de cheltuieli",null,null,null,null,null,null,null,null,null,null,null,null,null,null,null,null,null,null,null,null,null,null,null,null,null,null,null,null,null,null,null,null,null,null,"Cheltuieli eligibile",null,null,null,null,null,null,null,null,"Cheltuieli neeligibile",null,null,null,null,null,null,null,"Total"]
[null,null,null,null,null,null,null,null,null,null,null,null,null,null,null,null,null,null,null,null,null,null,null,null,null,null,null,null,null,null,null,null,null,null,null,"EURO",null,null,null,null,null,null,null,null,"EURO",null,null,null,null,null,null,null,"EURO"]
[1,null,null,null,null,null,null,null,null,null,null,null,null,null,null,null,null,null,null,null,null,null,null,null,null,null,null,null,null,null,null,null,null,null,null,2,null,null,null,null,null,null,null,null,3,null,null,null,null,null,null,null,4]
["Capitolul 1 Cheltuieli pentru obtinerea şi amenajarea terenului - total, din care:",null,null,null,null,null,null,null,null,null,null,null,null,null,null,null,null,null,null,null,null,null,null,null,null,null,null,null,null,null,null,null,null,null,null,{"$f":"SUM(AJ312:AR314)","v":0},null,null,null,null,null,null,null,null,{"$f":"SUM(AS311:AS314)","v":0},null,null,null,null,null,null,null,{"$f":"SUM(AJ310:AZ310)","v":0}]
["1.1 Obţinerea terenului",null,null,null,null,null,null,null,null,null,null,null,null,null,null,null,null,null,null,null,null,null,null,null,null,null,null,null,null,null,null,null,null,null,null,null,null,null,null,null,null,null,null,null,null,null,null,null,null,null,null,null,{"$f":"SUM(AJ311:AZ311)","v":0}]
["1.2 Amenajarea terenului",null,null,null,null,null,null,null,null,null,null,null,null,null,null,null,null,null,null,null,null,null,null,null,null,null,null,null,null,null,null,null,null,null,null,null,null,null,null,null,null,null,null,null,null,null,null,null,null,null,null,null,0]
["1.3 Amenajari pentru protecţia mediului şi aducerea terenului la starea iniţială",null,null,null,null,null,null,null,null,null,null,null,null,null,null,null,null,null,null,null,null,null,null,null,null,null,null,null,null,null,null,null,null,null,null,null,null,null,null,null,null,null,null,null,null,null,null,null,null,null,null,null,0]
["1.4 Cheltuieli pentru relocarea/protecţia utilităţilor",null,null,null,null,null,null,null,null,null,null,null,null,null,null,null,null,null,null,null,null,null,null,null,null,null,null,null,null,null,null,null,null,null,null,null,null,null,null,null,null,null,null,null,null,null,null,null,null,null,null,null,0]
["Capitolul 2 Cheltuieli pentru asigurarea utilităţilor necesare obiectivului de investiții",null,null,null,null,null,null,null,null,null,null,null,null,null,null,null,null,null,null,null,null,null,null,null,null,null,null,null,null,null,null,null,null,null,null,null,null,null,null,null,null,null,null,null,null,null,null,null,null,null,null,null,0]
["Capitolul 3 Cheltuieli pentru proiectare şi asistenţă tehnică - total, din care:",null,null,null,null,null,null,null,null,null,null,null,null,null,null,null,null,null,null,null,null,null,null,null,null,null,null,null,null,null,null,null,null,null,null,{"$f":"AJ317+AJ321+AJ322+AJ323+AJ324+AJ332+AJ335","v":0},null,null,null,null,null,null,null,null,{"$f":"AS317+AS321+AS322+AS331+AS323+AS324+AS332+AS335","v":0},null,null,null,null,null,null,null,0]
["3.1 Studii",null,null,null,null,null,null,null,null,null,null,null,null,null,null,null,null,null,null,null,null,null,null,null,null,null,null,null,null,null,null,null,null,null,null,{"$f":"SUM(AJ318:AJ320)","v":0},null,null,null,null,null,null,null,null,{"$f":"SUM(AS318:AS320)","v":0},null,null,null,null,null,null,null,0]
["    3.1.1 Studii de teren",null,null,null,null,null,null,null,null,null,null,null,null,null,null,null,null,null,null,null,null,null,null,null,null,null,null,null,null,null,null,null,null,null,null,null,null,null,null,null,null,null,null,null,null,null,null,null,null,null,null,null,0]
["    3.1.2 Raport privind impactul asupra mediului",null,null,null,null,null,null,null,null,null,null,null,null,null,null,null,null,null,null,null,null,null,null,null,null,null,null,null,null,null,null,null,null,null,null,null,null,null,null,null,null,null,null,null,null,null,null,null,null,null,null,null,0]
["    3.1.3 Alte studii specifice",null,null,null,null,null,null,null,null,null,null,null,null,null,null,null,null,null,null,null,null,null,null,null,null,null,null,null,null,null,null,null,null,null,null,null,null,null,null,null,null,null,null,null,null,null,null,null,null,null,null,null,0]
["3.2 Documentații-suport și cheltuieli pentru obţinerea de avize, acorduri şi autorizaţii",null,null,null,null,null,null,null,null,null,null,null,null,null,null,null,null,null,null,null,null,null,null,null,null,null,null,null,null,null,null,null,null,null,null,null,null,null,null,null,null,null,null,null,null,null,null,null,null,null,null,null,0]
["3.3 Expertizare tehnică",null,null,null,null,null,null,null,null,null,null,null,null,null,null,null,null,null,null,null,null,null,null,null,null,null,null,null,null,null,null,null,null,null,null,null,null,null,null,null,null,null,null,null,null,null,null,null,null,null,null,null,0]
["3.4 Certificarea performanței energetice și auditul energetic al clădirilor",null,null,null,null,null,null,null,null,null,null,null,null,null,null,null,null,null,null,null,null,null,null,null,null,null,null,null,null,null,null,null,null,null,null,null,null,null,null,null,null,null,null,null,null,null,null,null,null,null,null,null,0]
["3.5 Proiectare",null,null,null,null,null,null,null,null,null,null,null,null,null,null,null,null,null,null,null,null,null,null,null,null,null,null,null,null,null,null,null,null,null,null,{"$f":"SUM(AJ326:AR330)","v":0},null,null,null,null,null,null,null,null,{"$f":"SUM(AS325:AS330)","v":0},null,null,null,null,null,null,null,0]
["    3.5.1 Temă de proiectare",null,null,null,null,null,null,null,null,null,null,null,null,null,null,null,null,null,null,null,null,null,null,null,null,null,null,null,null,null,null,null,null,null,null,null,null,null,null,null,null,null,null,null,null,null,null,null,null,null,null,null,0]
["    3.5.2 Studiu de prefezabilitate",null,null,null,null,null,null,null,null,null,null,null,null,null,null,null,null,null,null,null,null,null,null,null,null,null,null,null,null,null,null,null,null,null,null,null,null,null,null,null,null,null,null,null,null,null,null,null,null,null,null,null,0]
["    3.5.3 Studiu de fezabilitate/documentație de avizare a lucrărilor de intervenții și deviz general",null,null,null,null,null,null,null,null,null,null,null,null,null,null,null,null,null,null,null,null,null,null,null,null,null,null,null,null,null,null,null,null,null,null,null,null,null,null,null,null,null,null,null,null,null,null,null,null,null,null,null,0]
["    3.5.4 Documentațiile tehnice necesare în vederea obținerii avizelor / acordurilor / autorizațiilor",null,null,null,null,null,null,null,null,null,null,null,null,null,null,null,null,null,null,null,null,null,null,null,null,null,null,null,null,null,null,null,null,null,null,null,null,null,null,null,null,null,null,null,null,null,null,null,null,null,null,null,0]
["    3.5.5 Verificarea tehnică de calitate a proiectului tehnic și a detaliilor de execuție",null,null,null,null,null,null,null,null,null,null,null,null,null,null,null,null,null,null,null,null,null,null,null,null,null,null,null,null,null,null,null,null,null,null,null,null,null,null,null,null,null,null,null,null,null,null,null,null,null,null,null,0]
["    3.5.6 Proiect tehnic și detalii de execuție",null,null,null,null,null,null,null,null,null,null,null,null,null,null,null,null,null,null,null,null,null,null,null,null,null,null,null,null,null,null,null,null,null,null,null,null,null,null,null,null,null,null,null,null,null,null,null,null,null,null,null,0]
["3.6 Asistenţă tehnică",null,null,null,null,null,null,null,null,null,null,null,null,null,null,null,null,null,null,null,null,null,null,null,null,null,null,null,null,null,null,null,null,null,null,null,null,null,null,null,null,null,null,null,null,null,null,null,null,null,null,null,{"$f":"SUM(AJ331:AZ331)","v":0}]
["3.7 Consultanță",null,null,null,null,null,null,null,null,null,null,null,null,null,null,null,null,null,null,null,null,null,null,null,null,null,null,null,null,null,null,null,null,null,null,{"$f":"AJ333","v":0},null,null,null,null,null,null,null,null,{"$f":"SUM(AS333:AS334)","v":0},null,null,null,null,null,null,null,{"$f":"SUM(AJ332:AZ332)","v":0}]
["    3.7.1 Managementul de proiect pentru obiectivul de investiții",null,null,null,null,null,null,null,null,null,null,null,null,null,null,null,null,null,null,null,null,null,null,null,null,null,null,null,null,null,null,null,null,null,null,null,null,null,null,null,null,null,null,null,null,null,null,null,null,null,null,null,0]
["    3.7.2 Auditul financiar",null,null,null,null,null,null,null,null,null,null,null,null,null,null,null,null,null,null,null,null,null,null,null,null,null,null,null,null,null,null,null,null,null,null,null,null,null,null,null,null,null,null,null,null,null,null,null,null,null,null,null,0]
["3.8 Asistența tehnică",null,null,null,null,null,null,null,null,null,null,null,null,null,null,null,null,null,null,null,null,null,null,null,null,null,null,null,null,null,null,null,null,null,null,{"$f":"AJ336+AJ339","v":0},null,null,null,null,null,null,null,null,{"$f":"AS336+AS339","v":0},null,null,null,null,null,null,null,0]
["    3.8.1 Asistență tehnică din partea proiectantului",null,null,null,null,null,null,null,null,null,null,null,null,null,null,null,null,null,null,null,null,null,null,null,null,null,null,null,null,null,null,null,null,null,null,{"$f":"SUM(AJ337:AJ338)","v":0},null,null,null,null,null,null,null,null,{"$f":"SUM(AS337:AS338)","v":0},null,null,null,null,null,null,null,0]
["          3.8.1.1 pe perioada de execuție a lucrărilor",null,null,null,null,null,null,null,null,null,null,null,null,null,null,null,null,null,null,null,null,null,null,null,null,null,null,null,null,null,null,null,null,null,null,null,null,null,null,null,null,null,null,null,null,null,null,null,null,null,null,null,0]
["          3.8.1.2 pentru participarea proiectantului la fazele incluse în programul de control al lucrărilor de execuție, avizat de către Inspectoratul de Stat în Construcții",null,null,null,null,null,null,null,null,null,null,null,null,null,null,null,null,null,null,null,null,null,null,null,null,null,null,null,null,null,null,null,null,null,null,null,null,null,null,null,null,null,null,null,null,null,null,null,null,null,null,null,0]
["      3.8.2 Dirigenție de șantier",null,null,null,null,null,null,null,null,null,null,null,null,null,null,null,null,null,null,null,null,null,null,null,null,null,null,null,null,null,null,null,null,null,null,null,null,null,null,null,null,null,null,null,null,null,null,null,null,null,null,null,0]
["Verificare încadrare cheltuieli capitolul 3",null,null,null,null,null,null,null,null,null,null,null,null,null,null,null,null,null,null,null,null,null,null,null,null,null,null,null,null,null,null,null,{"$f":"AJ310+AJ315+AJ341","v":0},{"$f":"IF(AG340=0,0,AI340)","v":0},{"$f":"AJ316*100/AG340","v":{"$error":"#DIV/0!"}},{"$f":"IF(AJ341=0,IF(AH340<=5,\"cheltuieli capitol 3 se incadreaza in limita de 5%\",\"cheltuieli capitol 3 nu se incadreaza in limita de 5%\"),IF(AH340<=10,\"cheltuieli capitol 3 se incadreaza in limita de 10%\",\"cheltuieli capitol 3 nu se incadreaza in limita de 10%\"))","v":"cheltuieli capitol 3 se incadreaza in limita de 5%"}]
["Capitolul 4 Cheltuieli pentru investiţia de bază - total, din care:",null,null,null,null,null,null,null,null,null,null,null,null,null,null,null,null,null,null,null,null,null,null,null,null,null,null,null,null,null,null,null,null,null,null,{"$f":"SUM(AJ342:AJ347)","v":0},null,null,null,null,null,null,null,null,{"$f":"SUM(AS342:AS347)","v":0},null,null,null,null,null,null,null,{"$f":"SUM(AJ341:AZ341)","v":0}]
["4.1 Construcţii şi instalaţii",null,null,null,null,null,null,null,null,null,null,null,null,null,null,null,null,null,null,null,null,null,null,null,null,null,null,null,null,null,null,null,null,null,null,null,null,null,null,null,null,null,null,null,null,null,null,null,null,null,null,null,0]
["4.2 Montaj utilaje, echipamente tehnologice şi funcţionale",null,null,null,null,null,null,null,null,null,null,null,null,null,null,null,null,null,null,null,null,null,null,null,null,null,null,null,null,null,null,null,null,null,null,null,null,null,null,null,null,null,null,null,null,null,null,null,null,null,null,null,0]
["4.3 Utilaje, echipamente tehnologice şi funcţionale care necesită montaj",null,null,null,null,null,null,null,null,null,null,null,null,null,null,null,null,null,null,null,null,null,null,null,null,null,null,null,null,null,null,null,null,null,null,null,null,null,null,null,null,null,null,null,null,null,null,null,null,null,null,null,0]
["4.4 Utilaje, echipamente tehnologice şi funcţionale care nu necesită montaj şi echipamente transport",null,null,null,null,null,null,null,null,null,null,null,null,null,null,null,null,null,null,null,null,null,null,null,null,null,null,null,null,null,null,null,null,null,null,null,null,null,null,null,null,null,null,null,null,null,null,null,null,null,null,null,0]
["4.5 Dotări",null,null,null,null,null,null,null,null,null,null,null,null,null,null,null,null,null,null,null,null,null,null,null,null,null,null,null,null,null,null,null,null,null,null,null,null,null,null,null,null,null,null,null,null,null,null,null,null,null,null,null,0]
["4.6 Active necorporale",null,null,null,null,null,null,null,null,null,null,null,null,null,null,null,null,null,null,null,null,null,null,null,null,null,null,null,null,null,null,null,null,null,null,null,null,null,null,null,null,null,null,null,null,null,null,null,null,null,null,null,0]
["Capitolul 5 Alte cheltuieli - total, din care:",null,null,null,null,null,null,null,null,null,null,null,null,null,null,null,null,null,null,null,null,null,null,null,null,null,null,null,null,null,null,null,null,null,null,{"$f":"AJ349+AJ352+AJ359","v":0},null,null,null,null,null,null,null,null,{"$f":"AS349+AS352+AS358+AS359","v":0},null,null,null,null,null,null,null,0]
["5.1 Organizare de şantier",null,null,null,null,null,null,null,null,null,null,null,null,null,null,null,null,null,null,null,null,null,null,null,null,null,null,null,null,null,null,null,null,null,null,{"$f":"SUM(AJ350:AR351)","v":0},null,null,null,null,null,null,null,null,{"$f":"SUM(AS350:AZ351)","v":0},null,null,null,null,null,null,null,0]
["      5.1.1 Lucrări de construcţii şi instalaţii aferente organizării de şantier",null,null,null,null,null,null,null,null,null,null,null,null,null,null,null,null,null,null,null,null,null,null,null,null,null,null,null,null,null,null,null,null,null,null,null,null,null,null,null,null,null,null,null,null,null,null,null,null,null,null,null,0]
["      5.1.2 Cheltuieli conexe orgănizării şantierului",null,null,null,null,null,null,null,null,null,null,null,null,null,null,null,null,null,null,null,null,null,null,null,null,null,null,null,null,null,null,null,null,null,null,null,null,null,null,null,null,null,null,null,null,null,null,null,null,null,null,null,0]
["5.2 Comisioane, cote, taxe, costul creditului",null,null,null,null,null,null,null,null,null,null,null,null,null,null,null,null,null,null,null,null,null,null,null,null,null,null,null,null,null,null,null,null,null,null,{"$f":"SUM(AJ354,AJ355,AJ357,AJ359)","v":0},null,null,null,null,null,null,null,null,{"$f":"SUM(AS353:AZ357)","v":0},null,null,null,null,null,null,null,0]
["      5.2.1 Comisioanele și dobânzile aferente creditului băncii finanțatoare",null,null,null,null,null,null,null,null,null,null,null,null,null,null,null,null,null,null,null,null,null,null,null,null,null,null,null,null,null,null,null,null,null,null,null,null,null,null,null,null,null,null,null,null,null,null,null,null,null,null,null,0]
["      5.2.2 Cota aferentă ISC pentru controlul calității lucrărilor de construcții",null,null,null,null,null,null,null,null,null,null,null,null,null,null,null,null,null,null,null,null,null,null,null,null,null,null,null,null,null,null,null,null,null,null,null,null,null,null,null,null,null,null,null,null,null,null,null,null,null,null,null,0]
["      5.2.3 Cota aferentă ISC pentru controlul statului în amenajarea teritoriului, urbanism și pentru autorizarea lucrărilor de construcţii",null,null,null,null,null,null,null,null,null,null,null,null,null,null,null,null,null,null,null,null,null,null,null,null,null,null,null,null,null,null,null,null,null,null,null,null,null,null,null,null,null,null,null,null,null,null,null,null,null,null,null,0]
["      5.2.4 Cota aferentă Casei Sociale a Constructorilor - CSC",null,null,null,null,null,null,null,null,null,null,null,null,null,null,null,null,null,null,null,null,null,null,null,null,null,null,null,null,null,null,null,null,null,null,null,null,null,null,null,null,null,null,null,null,null,null,null,null,null,null,null,0]
["      5.2.5 Taxe pentru acorduri, avize conforme și autorizașia de construire/desființare",null,null,null,null,null,null,null,null,null,null,null,null,null,null,null,null,null,null,null,null,null,null,null,null,null,null,null,null,null,null,null,null,null,null,null,null,null,null,null,null,null,null,null,null,null,null,null,null,null,null,null,0]
["5.3 Cheltuieli diverse şi neprevăzute",null,null,null,null,null,null,null,null,null,null,null,null,null,null,null,null,null,null,null,null,null,null,null,null,null,null,null,null,null,null,null,null,null,null,null,null,null,null,null,null,null,null,null,null,null,null,null,null,null,null,null,{"$f":"SUM(AJ358:AZ358)","v":0}]
["5.4 Cheltuieli pentru informare și publicitate",null,null,null,null,null,null,null,null,null,null,null,null,null,null,null,null,null,null,null,null,null,null,null,null,null,null,null,null,null,null,null,null,null,null,null,null,null,null,null,null,null,null,null,null,null,null,null,null,null,null,null,{"$f":"SUM(AJ359:AZ359)","v":0}]
["Capitolul 6 Cheltuieli pentru darea în exploatare - total, din care:",null,null,null,null,null,null,null,null,null,null,null,null,null,null,null,null,null,null,null,null,null,null,null,null,null,null,null,null,null,null,null,null,null,null,{"$f":"AJ362","v":0},null,null,null,null,null,null,null,null,{"$f":"SUM(AS361:AS362)","v":0},null,null,null,null,null,null,null,0]
["6.1 Pregătirea personalului de exploatare",null,null,null,null,null,null,null,null,null,null,null,null,null,null,null,null,null,null,null,null,null,null,null,null,null,null,null,null,null,null,null,null,null,null,null,null,null,null,null,null,null,null,null,null,null,null,null,null,null,null,null,0]
["6.2 Probe tehnologice şi teste",null,null,null,null,null,null,null,null,null,null,null,null,null,null,null,null,null,null,null,null,null,null,null,null,null,null,null,null,null,null,null,null,null,null,null,null,null,null,null,null,null,null,null,null,null,null,null,null,null,null,null,0]
["TOTAL GENERAL",null,null,null,null,null,null,null,null,null,null,null,null,null,null,null,null,null,null,null,null,null,null,null,null,null,null,null,null,null,null,null,null,null,null,{"$f":"AJ310+AJ315+AJ316+AJ341+AJ348+AJ360","v":0},null,null,null,null,null,null,null,null,{"$f":"AS310+AS315+AS316+AS341+AS348+AS360","v":0},null,null,null,null,null,null,null,0]
["Verificare actualizare",null,null,null,null,null,null,null,null,null,null,null,null,null,null,null,null,null,null,null,null,null,null,null,null,null,null,null,null,null,null,{"$f":"AJ365*100/AJ363","v":{"$error":"#DIV/0!"}},null,null,{"$f":"IF(AJ363=0,0,AF364)","v":0},{"$f":"IF(AI364<=5,\"actualizare mai mică de 5% din valoarea eligibila\",\"actualizare mai mare de 5% din valoarea eligibila\")","v":"actualizare mai mică de 5% din valoarea eligibila"}]
["ACTUALIZARE Cheltuieli Eligibile (max 5%)",null,null,null,null,null,null,null,null,null,null,null,null,null,null,null,null,null,null,null,null,null,null,null,null,null,null,null,null,null,null,null,null,null,null,null,null,null,null,null,null,null,null,null,null,null,null,null,null,null,null,null,{"$f":"SUM(AJ365:AZ365)","v":0}]
["TOTAL GENERAL CU ACTUALIZARE",null,null,null,null,null,null,null,null,null,null,null,null,null,null,null,null,null,null,null,null,null,null,null,null,null,null,null,null,null,null,null,null,null,null,{"$f":"AJ363+AJ365","v":0},null,null,null,null,null,null,null,null,{"$f":"AS363","v":0},null,null,null,null,null,null,null,0]
["Valoare TVA",null,null,null,null,null,null,null,null,null,null,null,null,null,null,null,null,null,null,null,null,null,null,null,null,null,null,null,null,null,null,null,null,null,null,null,null,null,null,null,null,null,null,null,null,null,null,null,null,null,null,null,0]
[]
["TOTAL GENERAL inclusiv TVA",null,null,null,null,null,null,null,null,null,null,null,null,null,null,null,null,null,null,null,null,null,null,null,null,null,null,null,null,null,null,null,null,null,null,{"$f":"BA366+BA367","v":0}]
[null,null,null,null,null,null,null,null,null,null,null,null,null,null,null,null,null,null,null,null,null,null,null,null,null,null,null,null,null,null,null,null,null,null,null,"LEI",null,null,null,null,null,null,null,null,"EURO"]
["VALOARE TOTALĂ",null,null,null,null,null,null,null,null,null,null,null,null,null,null,null,null,null,null,null,null,null,null,null,null,null,null,null,null,null,null,null,null,null,null,{"$f":"AS371*W304","v":0},null,null,null,null,null,null,null,null,{"$f":"AJ369","v":0}]
["VALOARE ELIGIBILĂ",null,null,null,null,null,null,null,null,null,null,null,null,null,null,null,null,null,null,null,null,null,null,null,null,null,null,null,null,null,null,null,null,null,null,{"$f":"AS372*W304","v":0},null,null,null,null,null,null,null,null,{"$f":"AJ366+AJ367","v":0}]
["VALOARE NEELIGIBILĂ",null,null,null,null,null,null,null,null,null,null,null,null,null,null,null,null,null,null,null,null,null,null,null,null,null,null,null,null,null,null,null,null,null,null,{"$f":"AS373*W304","v":0},null,null,null,null,null,null,null,null,{"$f":"AS366+AS367","v":0}]
["Plan Financiar",null,null,null,null,null,null,null,null,null,null,null,null,null,null,null,null,null,null,null,null,null,null,null,null,null,null,null,null,null,null,null,null,null,null,"Cheltuieli eligibile EURO",null,null,null,null,null,null,null,null,"Cheltuieli neeligibile EURO",null,null,null,null,null,null,null,"Total"]
["Ajutor public nerambursabil (contribuţie UE şi cofinanţare naţională)",null,null,null,null,null,null,null,null,null,null,null,null,null,null,null,null,null,null,null,null,null,null,null,null,null,null,null,null,null,null,null,null,null,null,null,null,null,null,null,null,null,null,null,null,null,null,null,null,null,null,null,{"$f":"SUM(AJ375:AZ375)","v":0}]
["Cofinantare privata, din care:",null,null,null,null,null,null,null,null,null,null,null,null,null,null,null,null,null,null,null,null,null,null,null,null,null,null,null,null,null,null,null,null,null,null,{"$f":"SUM(AJ377:AJ378)","v":0},null,null,null,null,null,null,null,null,{"$f":"SUM(AS377:AS378)","v":0},null,null,null,null,null,null,null,0]
[null,null,null,null,null,null,null,null,null,null,null,null,null,null,null,"- autofinantare",null,null,null,null,null,null,null,null,null,null,null,null,null,null,null,null,null,null,null,null,null,null,null,null,null,null,null,null,null,null,null,null,null,null,null,null,0]
[null,null,null,null,null,null,null,null,null,null,null,null,null,null,null,"- imprumuturi",null,null,null,null,null,null,null,null,null,null,null,null,null,null,null,null,null,null,null,null,null,null,null,null,null,null,null,null,null,null,null,null,null,null,null,null,0]
["Buget local",null,null,null,null,null,null,null,null,null,null,null,null,null,null,null,null,null,null,null,null,null,null,null,null,null,null,null,null,null,null,null,null,null,null,null,null,null,null,null,null,null,null,null,null,null,null,null,null,null,null,null,0]
["TOTAL PROIECT",null,null,null,null,null,null,null,null,null,null,null,null,null,null,null,null,null,null,null,null,null,null,null,null,null,null,null,null,null,null,null,null,null,null,{"$f":"AJ375+AJ376+AJ379","v":0},null,null,null,null,null,null,null,null,{"$f":"AS376+AS379","v":0},null,null,null,null,null,null,null,0]
["Procent contribuţie publică",null,null,null,null,null,null,null,null,null,null,null,null,null,null,null,null,null,null,null,null,null,null,null,null,null,null,null,null,null,null,null,null,{"$f":"AJ375*100/AJ380","v":{"$error":"#DIV/0!"}},{"$f":"IF(AJ380=0,0,AH381)","v":0},{"$f":"AI381","v":0},null,null,null,null,null,null,null,"%"]
["Avans solicitat"]
["Procent avans solicitat ca procent din ajutorul public nerambursabil",null,null,null,null,null,null,null,null,null,null,null,null,null,null,null,null,null,null,null,null,null,null,null,null,null,null,null,null,null,null,null,null,null,{"$f":"AJ382*100/AJ375","v":{"$error":"#DIV/0!"}},{"$f":"IF(AJ375=0,0,AI383)","v":0},null,null,null,null,null,null,null,null,{"$f":"IF(AJ383<=50,\"Suma avans mai mica de 50% din ajutorul public\",\"Suma avans mai mare de 50% din ajutorul public\")","v":"Suma avans mai mica de 50% din ajutorul public"}]
[]
[]
[null,null,null,null,null,null,null,null,null,null,null,null,null,null,null,null,null,null,null,null,null,null,null,null,null,null,null,null,null,null,null,null,null,null,null,null,null,null,null,null,null,null,"Anexa A1\nHG 907/2016"]
[]
["Deviz financiar- Capitolul 3 - Cheltuieli pentru proiectare şi asistenţa tehnică - EURO"]
[]
[]
["(Titlu deviz)"]
["Nr.crt",null,null,null,"Specificaţie",null,null,null,null,null,null,null,null,null,null,null,null,null,null,null,null,null,null,null,null,null,null,null,null,null,null,null,null,null,null,null,null,null,null,null,null,null,"Valoare eligibilă",null,null,null,null,null,null,null,null,"Valoare\nneeligibilă"]
["3.1",null,null,null,"Cheltuieli pentru studii - total din care:",null,null,null,null,null,null,null,null,null,null,null,null,null,null,null,null,null,null,null,null,null,null,null,null,null,null,null,null,null,null,null,null,null,null,null,null,null,{"$f":"AQ394+AQ395+AQ396","v":0},null,null,null,null,null,null,null,null,{"$f":"AZ394+AZ395+AZ396","v":0}]
[null,null,null,null,"3.1.1 Studii de teren: studii geotehnice, geologice, hidrologice, hidrogeotehnice,\nfotogrammetrice, topografica şi de stabilitate ale terenului pe care se amplasează obiectivul de investiţie "]
[null,null,null,null,"3.1.2 Raport privind impactul asupra mediului"]
[null,null,null,null,"3.1.3 Studii de specialitate necesare în funcţie de specificul investiţiei"]
["3.2",null,null,null,"Documentaţii-suport şi cheltuieli pentru obţinerea de avize, acorduri şi\nautorizaţii",null,null,null,null,null,null,null,null,null,null,null,null,null,null,null,null,null,null,null,null,null,null,null,null,null,null,null,null,null,null,null,null,null,null,null,null,null,{"$f":"AQ398+AQ399+AQ400+AQ403+AQ404+AQ405+AQ406","v":0},null,null,null,null,null,null,null,null,{"$f":"AZ398+AZ399+AZ400+AZ401+AZ402+AZ403+AZ404+AZ405+AZ406","v":0}]
[null,null,null,null,"1. obţinerea/prelungirea valabilităţii ceritificatului de urbanism"]
[null,null,null,null,"2. obţinerea/prelungirea valabilităţii autorizaţiei de construire/desfiinţare"]
[null,null,null,null,"3. obţinerea avizelor şi acordurilor pentru racorduri şi branşamente la reţele publice de alimentare cu apă, canalizare, alimentare cu gaze, alimentare cu agent termic, energie electrică, telefonie"]
[null,null,null,null,"4. obţinerea certificatului de nomenclatură stradală şi adresă"]
[null,null,null,null,"5. întocmirea documentaţiei, obţinerea numărului cadastral provizoriu şi\nînregistrarea terenului în cartea funciară"]
[null,null,null,null,"6. obţinerea actului administrativ al autorităţii competente pentru protecţia mediului"]
[null,null,null,null,"7. obţinerea avizului de protecţie civilă"]
[null,null,null,null,"8. avizul de specialitate în cazul obiectivelor de patrimoniu"]
[null,null,null,null,"9. alte avize, acorduri şi autorizaţii"]
["3.3",null,null,null,"Cheltuieli pentru expertizarea tehnică a construcţiilor existente, a structurilor şi/sau, după caz, a proiectelor tehnice, inclusiv întocmirea de către expertul tehnic a raportului de expertiză tehnică",null,null,null,null,null,null,null,null,null,null,null,null,null,null,null,null,null,null,null,null,null,null,null,null,null,null,null,null,null,null,null,null,null,null,null,null,null,0,null,null,null,null,null,null,null,null,0]
["3.4",null,null,null,"Cheltuieli pentru certificarea performanţei energetice şi auditul energetic al clădirilor",null,null,null,null,null,null,null,null,null,null,null,null,null,null,null,null,null,null,null,null,null,null,null,null,null,null,null,null,null,null,null,null,null,null,null,null,null,0,null,null,null,null,null,null,null,null,0]
["3.5",null,null,null,"Cheltuieli pentru proiectare",null,null,null,null,null,null,null,null,null,null,null,null,null,null,null,null,null,null,null,null,null,null,null,null,null,null,null,null,null,null,null,null,null,null,null,null,null,{"$f":"AQ410+AQ411+AQ412+AQ413+AQ414+AQ415","v":0},null,null,null,null,null,null,null,null,{"$f":"AZ410+AZ411+AZ412+AZ413+AZ414+AZ415","v":0}]
[null,null,null,null,"3.5.1 Temă de proiectare"]
[null,null,null,null,"3.5.2 Studiu de prefezabilitate"]
[null,null,null,null,"3.5.3 Studiu de fezabilitate/documentaţie de avizare a lucrărilor de intervenţii şi deviz general"]
[null,null,null,null,"3.5.4 Documentaţiile tehnice necesare în vederea obţinerii avizelor / acordurilor / autorizaţiilor"]
[null,null,null,null,"3.5.5 Verificarea tehnică de calitate a proiectului tehnic şi a detaliilor de execuţie"]
[null,null,null,null,"3.5.6 Proiect tehnic şi detalii de execuţie"]
["3.6",null,null,null,"Cheltuieli aferente organizării şi derulării procedurilor de achiziţii publice",null,null,null,null,null,null,null,null,null,null,null,null,null,null,null,null,null,null,null,null,null,null,null,null,null,null,null,null,null,null,null,null,null,null,null,null,null,null,null,null,null,null,null,null,null,null,{"$f":"AZ417+AZ418+AZ419+AZ420","v":0}]
[null,null,null,null,"1. Cheltuieli aferente întocmirii documentaţiei de atribuire şi multiplicării acesteia (exclusiv cele cumpărate de ofertanţi)"]
[null,null,null,null,"2. Cheltuieli cu onorariile, transportul, cazarea şi diurna membrilor desemnaţi în comisiile de evaluare"]
[null,null,null,null,"3. Anunţuri de intenţie, de participare şi de atribuire a contractelor, corespondenţă\nprin poştă, fax, poştă electronică în legătură cu procedurile de achiziţie publică"]
[null,null,null,null,"4. Cheltuieli aferente organizării şi derulării procedurilor de achiziţii publice"]
["3.7",null,null,null,"Cheltuieli pentru consultanţă",null,null,null,null,null,null,null,null,null,null,null,null,null,null,null,null,null,null,null,null,null,null,null,null,null,null,null,null,null,null,null,null,null,null,null,null,null,{"$f":"AQ422","v":0},null,null,null,null,null,null,null,null,{"$f":"AZ422+AZ423","v":0}]
[null,null,null,null,"3.7.1 Managementul de proiect pentru obiectivul de investiţii"]
[null,null,null,null,"3.7.2 Auditul financiar"]
["3.8",null,null,null,"Cheltuieli pentru asistenţă tehnică",null,null,null,null,null,null,null,null,null,null,null,null,null,null,null,null,null,null,null,null,null,null,null,null,null,null,null,null,null,null,null,null,null,null,null,null,null,{"$f":"AQ425+AQ428","v":0},null,null,null,null,null,null,null,null,{"$f":"AZ425+AZ428","v":0}]
[null,null,null,null,"3.8.1. Asistenţă tehnică din partea proiectantului",null,null,null,null,null,null,null,null,null,null,null,null,null,null,null,null,null,null,null,null,null,null,null,null,null,null,null,null,null,null,null,null,null,null,null,null,null,{"$f":"AQ426+AQ427","v":0},null,null,null,null,null,null,null,null,{"$f":"AZ426+AZ427","v":0}]
[null,null,null,null,"    1.1. pe perioada de execuţie a lucrărilor"]
[null,null,null,null,"    1.2. pentru participarea proiectantului la fazele incluse în programul de control al lucrărilor de execuţie, avizat de către Inspectoratul de Stat în Construcţii"]
[null,null,null,null,"3.8.2 Dirigenţie de şantier, asigurată de personal tehnic de specialitate, autorizat"]
[null,null,null,null,"Total valoare fără TVA",null,null,null,null,null,null,null,null,null,null,null,null,null,null,null,null,null,null,null,null,null,null,null,null,null,null,null,null,null,null,null,null,null,null,null,null,null,{"$f":"AQ424+AQ421+AQ409+AQ408+AQ407+AQ397+AQ393","v":0},null,null,null,null,null,null,null,null,{"$f":"AZ424+AZ421+AZ416+AZ409+AZ408+AZ407+AZ397+AZ393","v":0}]
[null,null,null,null,"Valoare TVA (aferentă cheltuielilor eligibile şi neeligibile)"]
["TOTAL DEVIZ FINANCIAR 1 (inclusiv TVA)",null,null,null,null,null,null,null,null,null,null,null,null,null,null,null,null,null,null,null,null,null,null,null,null,null,null,null,null,null,null,null,null,null,null,null,null,null,null,null,null,null,{"$f":"AQ429+AZ429+AQ430+AZ430","v":0}]
[]
[]
[]
[null,null,null,null,null,null,null,null,null,null,null,null,null,null,null,null,null,null,null,null,null,null,null,null,null,null,null,null,null,null,null,null,null,null,null,null,null,null,null,null,null,null,"Anexa A2\nHG 907/2016"]
[]
["DEVIZ PE OBIECT *"]
[]
[]
["(Descriere obiect de construcţie)"]
["Nr. crt.",null,null,null,"Denumire",null,null,null,null,null,null,null,null,null,null,null,null,null,null,null,null,null,null,null,null,null,null,null,null,null,null,null,null,null,null,null,null,null,null,null,null,null,"Valoarea pe categorii de lucrări, fară TVA - EURO"]
["Cap. 4 + Cheltuieli pentru investiţia de bază",null,null,null,null,null,null,null,null,null,null,null,null,null,null,null,null,null,null,null,null,null,null,null,null,null,null,null,null,null,null,null,null,null,null,null,null,null,null,null,null,null,"Valoare eligibilă",null,null,null,null,null,null,null,null,"Valoare\nneeligibilă"]
["   I - LUCRĂRI DE CONSTRUCŢII ŞI INSTALAŢII"]
["4.1",null,null,null,"Construcţii şi instalaţii"]
[null,null,null,null,"4.1.1 Terasamente, sistematizare pe verticală şi amenajări exterioare"]
[null,null,null,null,"4.1.2 Rezistenţă"]
[null,null,null,null,"4.1.3 Arhitectură"]
[null,null,null,null,"4.1.4 Instalaţii"]
[null,null,null,null,"TOTAL I ( fără TVA)",null,null,null,null,null,null,null,null,null,null,null,null,null,null,null,null,null,null,null,null,null,null,null,null,null,null,null,null,null,null,null,null,null,null,null,null,null,{"$f":"SUM(AQ445:AY448)","v":0},null,null,null,null,null,null,null,null,{"$f":"SUM(AZ445:BI448)","v":0}]
["   II - MONTAJ"]
["4.2",null,null,null,"Montaj utilaje şi echipamente tehnologice"]
[null,null,null,null,"TOTAL II ( fără TVA)",null,null,null,null,null,null,null,null,null,null,null,null,null,null,null,null,null,null,null,null,null,null,null,null,null,null,null,null,null,null,null,null,null,null,null,null,null,{"$f":"SUM(AQ451)","v":0},null,null,null,null,null,null,null,null,{"$f":"SUM(AZ451)","v":0}]
["   III - PROCURARE"]
["4.3",null,null,null,"Utilaje, echipamente tehnologice şi funcţionale care necesită montaj"]
["4.4",null,null,null,"Utilaje, echipamente tehnologice şi funcţionale care nu necesită\nmontaj şi echipamente de transport"]
["4.5",null,null,null,"Dotări"]
["4.6",null,null,null,"Active necorporale"]
[null,null,null,null,"TOTAL III (fără TVA)",null,null,null,null,null,null,null,null,null,null,null,null,null,null,null,null,null,null,null,null,null,null,null,null,null,null,null,null,null,null,null,null,null,null,null,null,null,{"$f":"SUM(AQ454:AY457)","v":0},null,null,null,null,null,null,null,null,{"$f":"SUM(AZ454:BI457)","v":0}]
["TOTAL ( TOTAL I + TOTAL II + TOTAL III) fără TVA",null,null,null,null,null,null,null,null,null,null,null,null,null,null,null,null,null,null,null,null,null,null,null,null,null,null,null,null,null,null,null,null,null,null,null,null,null,null,null,null,null,{"$f":"AQ458+AQ452+AQ449","v":0},null,null,null,null,null,null,null,null,{"$f":"AZ458+AZ452+AZ449","v":0}]
["TVA aferent cheltuielilor eligibile şi neeligibile"]
["TOTAL DEVIZ PE OBIECT (inclusiv TVA)",null,null,null,null,null,null,null,null,null,null,null,null,null,null,null,null,null,null,null,null,null,null,null,null,null,null,null,null,null,null,null,null,null,null,null,null,null,null,null,null,null,{"$f":"AQ459+AZ459+AQ460+AZ460","v":0}]
[]
[]
[]
["Situaţia achiziţiilor publice efectuate până la depunerea Cererii de finanţare cu respectarea condiţiilor de eligibilitate a cheltuielilor prevăzute în fişa Măsurii 5 / 1B /6B"]
["Nr. crt.",null,null,"Obiectul contractului",null,null,null,null,null,null,null,null,null,null,null,null,null,null,"Valoarea reală                         (Lei)",null,null,null,null,"Procedura aplicată",null,null,null,null,null,null,null,null,null,null,null,null,null,null,null,null,null,"Data începerii procedurii (zz/ll/aaaa)",null,null,null,null,null,null,"Data finalizarii procedurii (zz/ll/aaaa)",null,null,null,null,null,null,"Stadiul procedurii"]
[1,null,null,"Servicii de consultanta"]
[2,null,null,"Elaborarea Studiului de Fezabilitate"]
[3]
[4]
[5]
[6]
[7]
["Declar pe proprie raspundere ca informatiile din tabelul de mai sus sunt corecte si ca la atribuirea contractelor de servicii mentionate au fost respectate prevederile legislatiei nationale in vigoare privind procedura de achizitie publica"]
[]
["Reprezentant legal, Nume/Prenume"]
["Semnatura si ştampila"]
[]
[]
[null,null,null,null,null,null,null,null,null,null,null,null,null,null,null,null,null,null,null,null,null,null,null,null,null,null,null,null,null,null,null,null,null,null,null,null,null,null,null,null,null,null,"Anexa A3\nHG 907/2016"]
[]
[]
[]
[]
["(Titlu deviz)"]
["Deviz capitolul 2- Cheltuieli pentru asigurarea utilităţilor necesare obiectivului - EURO"]
["Nr.crt",null,null,null,"Specificaţie",null,null,null,null,null,null,null,null,null,null,null,null,null,null,null,null,null,null,null,null,null,null,null,null,null,null,null,null,null,null,null,null,null,null,null,null,null,"Valoare eligibilă",null,null,null,null,null,null,null,null,"Valoare\nneeligibilă"]
[1,null,null,null,"Alimentare cu apă"]
[2,null,null,null,"Canalizare"]
[3,null,null,null,"Alimentare cu gaze naturale"]
[4,null,null,null,"Alimentare cu agent termic"]
[5,null,null,null,"Alimentare cu energie electrică"]
[6,null,null,null,"Telecomunicaţii (telefonie, radio-tv etc)"]
[7,null,null,null,"Drumuri de acces"]
[8,null,null,null,"Căi ferate industriale"]
[9,null,null,null,"Alte utilități"]
[null,null,null,null,"TOTAL DEVIZ CAPITOLUL 2",null,null,null,null,null,null,null,null,null,null,null,null,null,null,null,null,null,null,null,null,null,null,null,null,null,null,null,null,null,null,null,null,null,null,null,null,null,{"$f":"SUM(AQ488:AY496)","v":0},null,null,null,null,null,null,null,null,{"$f":"SUM(AZ488:BI496)","v":0}]
[null,null,null,null,"Valoare TVA aferentă cheltuielilor eligibile şi neeligibile"]
["TOTAL DEVIZ CAPITOLUL 2 (inclusiv TVA)",null,null,null,null,null,null,null,null,null,null,null,null,null,null,null,null,null,null,null,null,null,null,null,null,null,null,null,null,null,null,null,null,null,null,null,null,null,null,null,null,null,{"$f":"AQ497+AZ497+AQ498+AZ498","v":0}]
[]
[" Deviz capitolul 5 - Alte cheltuieli - EURO"]
["Nr.crt",null,null,null,"Specificaţie",null,null,null,null,null,null,null,null,null,null,null,null,null,null,null,null,null,null,null,null,null,null,null,null,null,null,null,null,null,null,null,null,null,null,null,null,null,"Valoare eligibilă",null,null,null,null,null,null,null,null,"Valoare\nneeligibilă"]
[]
["5.1 ",null,null,null,"Organizare de şantier",null,null,null,null,null,null,null,null,null,null,null,null,null,null,null,null,null,null,null,null,null,null,null,null,null,null,null,null,null,null,null,null,null,null,null,null,null,{"$f":"SUM(AQ505:AY506)","v":0},null,null,null,null,null,null,null,null,{"$f":"SUM(AZ505:BI506)","v":0}]
[null,null,null,null,"5.1.1 Lucrări de construcţii şi instalaţii aferente organizării de şantier"]
[null,null,null,null,"5.1.2 Cheltuieli conexe organizării de şantier"]
["5.2",null,null,null,"Comisioane, cote, taxe, costul creditului",null,null,null,null,null,null,null,null,null,null,null,null,null,null,null,null,null,null,null,null,null,null,null,null,null,null,null,null,null,null,null,null,null,null,null,null,null,{"$f":"SUM(AQ509,AQ510,AQ512)","v":0},null,null,null,null,null,null,null,null,{"$f":"SUM(AZ508:BI512)","v":0}]
[null,null,null,null,"5.2.1. Comisioanele şi dobânzile aferente creditului băncii finanţatoare"]
[null,null,null,null,"5.2.2. Cota aferentă ISC pentru controlul calităţii lucrărilor de\nconstrucţii"]
[null,null,null,null,"5.2.3. Cota aferentă ISC pentru controlul statului în amenajarea teritoriului, urbanism şi pentru autorizarea lucrărilor de construcţii"]
[null,null,null,null,"5.2.4. Cota aferentă Casei Sociale a Constructorilor - CSC"]
[null,null,null,null,"5.2.5. Taxe pentru acorduri, avize conforme şi autorizaţia de construire/desfiinţare"]
["5.3",null,null,null,"Cheltuieli diverse si neprevazute"]
["5.3",null,null,null,"Cheltuieli pentru informare și publicitate",null,null,null,null,null,null,null,null,null,null,null,null,null,null,null,null,null,null,null,null,null,null,null,null,null,null,null,null,null,null,null,null,null,null,null,null,null,0,null,null,null,null,null,null,null,null,0]
[null,null,null,null,"TOTAL DEVIZ CAPITOLUL 5",null,null,null,null,null,null,null,null,null,null,null,null,null,null,null,null,null,null,null,null,null,null,null,null,null,null,null,null,null,null,null,null,null,null,null,null,null,{"$f":"AQ504+AQ507+AQ514","v":0},null,null,null,null,null,null,null,null,{"$f":"AZ514+AZ513+AZ507+AZ504","v":0}]
[null,null,null,null,"VALOARE TVA aferentă cheltuielilor eligibile şi neeligibile"]
[null,null,null,null,"TOTAL DEVIZ CAPITOLUL 5 ( inclusiv TVA)",null,null,null,null,null,null,null,null,null,null,null,null,null,null,null,null,null,null,null,null,null,null,null,null,null,null,null,null,null,null,null,null,null,null,null,null,null,{"$f":"AQ515+AZ515+AQ516+AZ516","v":0}]
[]
[]
[]
[]
[]
[]
[]
[]
[]
[]
[]
[]
[]
[]
[]
[]
[]
["BUGET INDICATIV PENTRU SERVICII"]
[]
[null,null,"Denumirea capitolelor de cheltuieli",null,null,null,null,null,null,null,null,null,null,null,null,null,null,null,null,null,null,null,null,null,null,null,null,null,null,null,null,null,"Chetuieli eligibile euro",null,null,null,null,null,null,null,"Cheltuieli neeligibile euro",null,null,null,null,null,null,null,null,null,null,"TOTAL EURO"]
[null,null,"CAP.I CHELTUIELI CU  PERSONALUL"]
[null,null,"CAP. II CHELTUIELI PENTRU DERULAREA PROIECTULUI"]
[null,null,"TOTAL Valoare eligibilă proiect (fără TVA)"]
[null,null,"Valoare TVA"]
[null,null,"TOTAL valoare proiect, inclusiv TVA"]
[null,null,"PLANUL FINANCIAR"]
[null,null,"Ajutor public nerambursabil (contribuție UE și cofinanțare națională)"]
[null,null,"Cofinanțare privată din care:"]
[null,null,"autofinanțare"]
[null,null,"împrumuturi"]
[null,null,"Total proiect"]
[null,null,"Procent contribuție publică [%]"]
[]
["Cursul de schimb EURO - RON utilizat la Contractul de finanţare este cursul euro-leu stabilit de către Banca Central Europeană, publicat pe pagina web http://www.ecb.int/index.html, valabil la data de 01 ianuarie a anului în cursul căruia este luată decizia de acordare a ajutorului financiar nerambursabil, respectiv anul încheierii Contractului de finanțare."]
["Cheltuielile eligibile: "]
["Pentru Capitolul I: cheltuieli cu salariile și onorariile experților implicați în organizarea și realizarea proiectului (experți cheie, manager de proiect și alte categorii de personal). \nNotă:\nExperții cheie sunt definiți ca experți care desfășoară activitatea direct legată de atingerea obiectivelor proiectului. De exemplu, în cazul unui proiect de formare profesională, experții cheie sunt experții formatori. Aceste cheltuieli vor fi decontate experților, de către beneficiar, prin documentele de plată (ordin de plată), în baza contractelor încheiate cu aceștia, conform legislației în vigoare.\nExistă două variante posibile pentru asigurarea personalului implicat în proiect:\n1. Experții implicați în derularea proiectelor angajați cu contract individual de muncă, în conformitate cu prevederile Codului Muncii, caz în care este eligibilă plata salariilor acestora. În acest caz, acești experți sunt exclusiv persoane fizice. Sunt eligibile pentru ajutor financiar inclusiv costurile cu toate taxele și impozitele aferente salariilor personalului angajat de prestator cu contract de muncă, sub condiția ca acestea să fie plătite doar pentru zilele efectiv lucrate de expert pentru proiect. Pentru aceasta categorie de personal sunt eligibile și cheltuielile cu transportul, cazarea și masa.\n2. Experții implicați în derularea proiectului în baza unor contracte de prestări servicii cu PFA/II, situație în care plata se va realiza pe bază de factură, aceasta reprezentând onorariul. În acest caz, modalitatea de plată a contribuțiilor către bugetul de stat este în responsabilitatea expertului care a prestat serviciul respectiv (PFA sau II). Onorariile experților (plătite în baza contractelor de prestări de servicii) implicați în realizarea proiectului includ și cheltuielile de transport, cazare și masă. \nNotă:\nPlafoanele prevăzute în Baza de date cu prețuri maximale pentru proiectele finanțate prin LEADER cuprind costurile totale atât pentru salarii, cât și pentru onorarii pentru personalul implicat în proiect.\nPentru Capitolul II sunt eligibile:\n- cheltuieli privind transportul participanților la acțiunile proiectului;\n- cheltuieli privind cazarea participanților la acțiunile proiectului;\n- cheltuieli privind masa participanților la acțiunile proiectului; \n- cheltuieli privind elaborarea de studii cu privire la zona în cauză și de studii de fezabilitate, precum și costurile aferente elaborării unui plan de afaceri (doar în cazul proiectelor depuse în baza art. 35, alin. 5(a)); \n- cheltuieli pentru închirierea de spații adecvate pentru derularea activităților proiectului;\n- cheltuieli pentru închirierea de echipamente și logistică pentru derularea acțiunilor în cadrul proiectului;\n- cheltuieli pentru achiziția de materiale didactice și/sau consumabile pentru derularea activităților proiectului; \n- cheltuieli cu materiale de informare și promovare utilizate în acțiunile proiectului (mape, bloc-notes, pix, pliante, broșuri, banner, editarea și tipărirea de materiale - geantă umăr, mapă de prezentare, inclusiv pagina web, materiale audio si video promovare platită prin social media și alte rețele de publicitate, radio și televiziune, personalizare echipamente, personalizare auto, etc.);\n- cheltuieli cu materiale publicitare cu informaţii privind finanţarea proiectelor prin PNDR (autocolante, afișe – conform Anexei VI la Contractul de finanțare);\n- cheltuieli cu plata auditorului;\n- alte cheltuieli pentru derularea proiectului (cheltuieli poștale, de telefonie, servicii de traducere și interpretare).  \nToate cheltuielile de mai sus necesită procedură de achiziții, cu excepția:\n- cheltuielilor pentru închirierea de spații adecvate pentru derularea activităților proiectului (se realizează în baza unui Contract de închiriere, care nu necesită procedură de achiziții); \n- cheltuielilor de cazare, atunci când nu se externalizează. Pentru cazare nu se va depăși prețul maximal din Baza de date cu prețuri de referință pentru proiectele de servicii finanțate prin Măsura 19 LEADER, indiferent dacă aceasta este sau nu externalizată;\n- cheltuielilor de transport, atunci când nu se externalizează. În acest caz, decontarea acestora se va realiza cu respectarea baremurilor impuse de HG nr. 1860/2006, privind drepturile şi obligaţiile personalului autorităţilor şi instituţiilor publice pe perioada delegării şi detaşării în altă localitate, precum şi în cazul deplasării, în cadrul localităţii, în interesul serviciului;\n- cheltuielilor de telefonie, poștale.\nLa realizarea Fundamentării bugetare pentru Cap. I, salariul / onorariul experților cheie se va calcula exclusiv pe durata efectiv prestată de experți în cadrul activităților de formare profesională / activităţi demonstrative / acţiuni de informare (zile/curs, zile/seminar) / activităților specifice proiectului de servicii (zile lucrate pentru elaborare monografie, studiu etc.) / acțiunilor de informare (difuzarea cunoștințelor științifice și tehnice) și promovare a produselor care fac obiectul unui sistem de calitate (zile derulare eveniment: seminar, târg, expoziție etc.). "]
[]
[]
[]
[]
[]
[]
[]
[]
[]
[]
[]
["BUGET INDICATIV TOTALIZATOR (investitii si servicii) - HG 907/2016"]
[]
[]
[null,null,null,null,null,null,null,null,null,null,null,null,null,null,null,"Curs EURO",null,null,null,null,null,null,null,null,null,null,null,null,null,"Data întocmirii devizului general din SF"]
[]
["Denumirea capitolelor de cheltuieli",null,null,null,null,null,null,null,null,null,null,null,null,null,null,null,null,null,null,null,null,null,null,null,null,null,null,null,null,null,null,null,null,null,null,"Cheltuieli eligibile",null,null,null,null,null,null,null,null,"Cheltuieli neeligibile",null,null,null,null,null,null,null,"Total"]
[null,null,null,null,null,null,null,null,null,null,null,null,null,null,null,null,null,null,null,null,null,null,null,null,null,null,null,null,null,null,null,null,null,null,null,"EURO",null,null,null,null,null,null,null,null,"EURO",null,null,null,null,null,null,null,"EURO"]
[1,null,null,null,null,null,null,null,null,null,null,null,null,null,null,null,null,null,null,null,null,null,null,null,null,null,null,null,null,null,null,null,null,null,null,2,null,null,null,null,null,null,null,null,3,null,null,null,null,null,null,null,4]
["Capitolul 1 Cheltuieli pentru obtinerea şi amenajarea terenului - total, din care:",null,null,null,null,null,null,null,null,null,null,null,null,null,null,null,null,null,null,null,null,null,null,null,null,null,null,null,null,null,null,null,null,null,null,0,null,null,null,null,null,null,null,null,0,null,null,null,null,null,null,null,0]
["1.1 Obţinerea terenului",null,null,null,null,null,null,null,null,null,null,null,null,null,null,null,null,null,null,null,null,null,null,null,null,null,null,null,null,null,null,null,null,null,null,null,null,null,null,null,null,null,null,null,null,null,null,null,null,null,null,null,0]
["1.2 Amenajarea terenului",null,null,null,null,null,null,null,null,null,null,null,null,null,null,null,null,null,null,null,null,null,null,null,null,null,null,null,null,null,null,null,null,null,null,null,null,null,null,null,null,null,null,null,null,null,null,null,null,null,null,null,0]
["1.3 Amenajari pentru protecţia mediului şi aducerea terenului la starea iniţială",null,null,null,null,null,null,null,null,null,null,null,null,null,null,null,null,null,null,null,null,null,null,null,null,null,null,null,null,null,null,null,null,null,null,null,null,null,null,null,null,null,null,null,null,null,null,null,null,null,null,null,0]
["1.4 Cheltuieli pentru relocarea/protecţia utilităţilor",null,null,null,null,null,null,null,null,null,null,null,null,null,null,null,null,null,null,null,null,null,null,null,null,null,null,null,null,null,null,null,null,null,null,null,null,null,null,null,null,null,null,null,null,null,null,null,null,null,null,null,0]
["Capitolul 2 Cheltuieli pentru asigurarea utilităţilor necesare obiectivului de investiții",null,null,null,null,null,null,null,null,null,null,null,null,null,null,null,null,null,null,null,null,null,null,null,null,null,null,null,null,null,null,null,null,null,null,null,null,null,null,null,null,null,null,null,null,null,null,null,null,null,null,null,0]
["Capitolul 3 Cheltuieli pentru proiectare şi asistenţă tehnică - total, din care:",null,null,null,null,null,null,null,null,null,null,null,null,null,null,null,null,null,null,null,null,null,null,null,null,null,null,null,null,null,null,null,null,null,null,0,null,null,null,null,null,null,null,null,0,null,null,null,null,null,null,null,0]
["3.1 Studii",null,null,null,null,null,null,null,null,null,null,null,null,null,null,null,null,null,null,null,null,null,null,null,null,null,null,null,null,null,null,null,null,null,null,0,null,null,null,null,null,null,null,null,0,null,null,null,null,null,null,null,0]
["    3.1.1 Studii de teren",null,null,null,null,null,null,null,null,null,null,null,null,null,null,null,null,null,null,null,null,null,null,null,null,null,null,null,null,null,null,null,null,null,null,null,null,null,null,null,null,null,null,null,null,null,null,null,null,null,null,null,0]
["    3.1.2 Raport privind impactul asupra mediului",null,null,null,null,null,null,null,null,null,null,null,null,null,null,null,null,null,null,null,null,null,null,null,null,null,null,null,null,null,null,null,null,null,null,null,null,null,null,null,null,null,null,null,null,null,null,null,null,null,null,null,0]
["    3.1.3 Alte studii specifice",null,null,null,null,null,null,null,null,null,null,null,null,null,null,null,null,null,null,null,null,null,null,null,null,null,null,null,null,null,null,null,null,null,null,null,null,null,null,null,null,null,null,null,null,null,null,null,null,null,null,null,0]
["3.2 Documentații-suport și cheltuieli pentru obţinerea de avize, acorduri şi autorizaţii",null,null,null,null,null,null,null,null,null,null,null,null,null,null,null,null,null,null,null,null,null,null,null,null,null,null,null,null,null,null,null,null,null,null,null,null,null,null,null,null,null,null,null,null,null,null,null,null,null,null,null,0]
["3.3 Expertizare tehnică",null,null,null,null,null,null,null,null,null,null,null,null,null,null,null,null,null,null,null,null,null,null,null,null,null,null,null,null,null,null,null,null,null,null,null,null,null,null,null,null,null,null,null,null,null,null,null,null,null,null,null,0]
["3.4 Certificarea performanței energetice și auditul energetic al clădirilor",null,null,null,null,null,null,null,null,null,null,null,null,null,null,null,null,null,null,null,null,null,null,null,null,null,null,null,null,null,null,null,null,null,null,null,null,null,null,null,null,null,null,null,null,null,null,null,null,null,null,null,0]
["3.5 Proiectare",null,null,null,null,null,null,null,null,null,null,null,null,null,null,null,null,null,null,null,null,null,null,null,null,null,null,null,null,null,null,null,null,null,null,0,null,null,null,null,null,null,null,null,0,null,null,null,null,null,null,null,0]
["    3.5.1 Temă de proiectare",null,null,null,null,null,null,null,null,null,null,null,null,null,null,null,null,null,null,null,null,null,null,null,null,null,null,null,null,null,null,null,null,null,null,null,null,null,null,null,null,null,null,null,null,null,null,null,null,null,null,null,0]
["    3.5.2 Studiu de prefezabilitate",null,null,null,null,null,null,null,null,null,null,null,null,null,null,null,null,null,null,null,null,null,null,null,null,null,null,null,null,null,null,null,null,null,null,null,null,null,null,null,null,null,null,null,null,null,null,null,null,null,null,null,0]
["    3.5.3 Studiu de fezabilitate/documentație de avizare a lucrărilor de intervenții și deviz general",null,null,null,null,null,null,null,null,null,null,null,null,null,null,null,null,null,null,null,null,null,null,null,null,null,null,null,null,null,null,null,null,null,null,null,null,null,null,null,null,null,null,null,null,null,null,null,null,null,null,null,0]
["    3.5.4 Documentațiile tehnice necesare în vederea obținerii avizelor / acordurilor / autorizațiilor",null,null,null,null,null,null,null,null,null,null,null,null,null,null,null,null,null,null,null,null,null,null,null,null,null,null,null,null,null,null,null,null,null,null,null,null,null,null,null,null,null,null,null,null,null,null,null,null,null,null,null,0]
["    3.5.5 Verificarea tehnică de calitate a proiectului tehnic și a detaliilor de execuție",null,null,null,null,null,null,null,null,null,null,null,null,null,null,null,null,null,null,null,null,null,null,null,null,null,null,null,null,null,null,null,null,null,null,null,null,null,null,null,null,null,null,null,null,null,null,null,null,null,null,null,0]
["    3.5.6 Proiect tehnic și detalii de execuție",null,null,null,null,null,null,null,null,null,null,null,null,null,null,null,null,null,null,null,null,null,null,null,null,null,null,null,null,null,null,null,null,null,null,null,null,null,null,null,null,null,null,null,null,null,null,null,null,null,null,null,0]
["3.6 Asistenţă tehnică",null,null,null,null,null,null,null,null,null,null,null,null,null,null,null,null,null,null,null,null,null,null,null,null,null,null,null,null,null,null,null,null,null,null,null,null,null,null,null,null,null,null,null,null,null,null,null,null,null,null,null,0]
["3.7 Consultanță",null,null,null,null,null,null,null,null,null,null,null,null,null,null,null,null,null,null,null,null,null,null,null,null,null,null,null,null,null,null,null,null,null,null,0,null,null,null,null,null,null,null,null,0,null,null,null,null,null,null,null,0]
["    3.7.1 Managementul de proiect pentru obiectivul de investiții",null,null,null,null,null,null,null,null,null,null,null,null,null,null,null,null,null,null,null,null,null,null,null,null,null,null,null,null,null,null,null,null,null,null,null,null,null,null,null,null,null,null,null,null,null,null,null,null,null,null,null,0]
["    3.7.2 Auditul financiar",null,null,null,null,null,null,null,null,null,null,null,null,null,null,null,null,null,null,null,null,null,null,null,null,null,null,null,null,null,null,null,null,null,null,null,null,null,null,null,null,null,null,null,null,null,null,null,null,null,null,null,0]
["3.8 Asistența tehnică",null,null,null,null,null,null,null,null,null,null,null,null,null,null,null,null,null,null,null,null,null,null,null,null,null,null,null,null,null,null,null,null,null,null,0,null,null,null,null,null,null,null,null,0,null,null,null,null,null,null,null,0]
["    3.8.1 Asistență tehnică din partea proiectantului",null,null,null,null,null,null,null,null,null,null,null,null,null,null,null,null,null,null,null,null,null,null,null,null,null,null,null,null,null,null,null,null,null,null,0,null,null,null,null,null,null,null,null,0,null,null,null,null,null,null,null,0]
["          3.8.1.1 pe perioada de execuție a lucrărilor",null,null,null,null,null,null,null,null,null,null,null,null,null,null,null,null,null,null,null,null,null,null,null,null,null,null,null,null,null,null,null,null,null,null,null,null,null,null,null,null,null,null,null,null,null,null,null,null,null,null,null,0]
["          3.8.1.2 pentru participarea proiectantului la fazele incluse în programul de control al lucrărilor de execuție, avizat de către Inspectoratul de Stat în Construcții",null,null,null,null,null,null,null,null,null,null,null,null,null,null,null,null,null,null,null,null,null,null,null,null,null,null,null,null,null,null,null,null,null,null,null,null,null,null,null,null,null,null,null,null,null,null,null,null,null,null,null,0]
["      3.8.2 Dirigenție de șantier",null,null,null,null,null,null,null,null,null,null,null,null,null,null,null,null,null,null,null,null,null,null,null,null,null,null,null,null,null,null,null,null,null,null,null,null,null,null,null,null,null,null,null,null,null,null,null,null,null,null,null,0]
["Verificare încadrare cheltuieli capitolul 3",null,null,null,null,null,null,null,null,null,null,null,null,null,null,null,null,null,null,null,null,null,null,null,null,null,null,null,null,null,null,null,0,0,{"$error":"#DIV/0!"},"cheltuieli capitol 3 se incadreaza in limita de 5%"]
["Capitolul 4 Cheltuieli pentru investiţia de bază - total, din care:",null,null,null,null,null,null,null,null,null,null,null,null,null,null,null,null,null,null,null,null,null,null,null,null,null,null,null,null,null,null,null,null,null,null,0,null,null,null,null,null,null,null,null,0,null,null,null,null,null,null,null,0]
["4.1 Construcţii şi instalaţii",null,null,null,null,null,null,null,null,null,null,null,null,null,null,null,null,null,null,null,null,null,null,null,null,null,null,null,null,null,null,null,null,null,null,null,null,null,null,null,null,null,null,null,null,null,null,null,null,null,null,null,0]
["4.2 Montaj utilaje, echipamente tehnologice şi funcţionale",null,null,null,null,null,null,null,null,null,null,null,null,null,null,null,null,null,null,null,null,null,null,null,null,null,null,null,null,null,null,null,null,null,null,null,null,null,null,null,null,null,null,null,null,null,null,null,null,null,null,null,0]
["4.3 Utilaje, echipamente tehnologice şi funcţionale care necesită montaj",null,null,null,null,null,null,null,null,null,null,null,null,null,null,null,null,null,null,null,null,null,null,null,null,null,null,null,null,null,null,null,null,null,null,null,null,null,null,null,null,null,null,null,null,null,null,null,null,null,null,null,0]
["4.4 Utilaje, echipamente tehnologice şi funcţionale care nu necesită montaj şi echipamente transport",null,null,null,null,null,null,null,null,null,null,null,null,null,null,null,null,null,null,null,null,null,null,null,null,null,null,null,null,null,null,null,null,null,null,null,null,null,null,null,null,null,null,null,null,null,null,null,null,null,null,null,0]
["4.5 Dotări",null,null,null,null,null,null,null,null,null,null,null,null,null,null,null,null,null,null,null,null,null,null,null,null,null,null,null,null,null,null,null,null,null,null,null,null,null,null,null,null,null,null,null,null,null,null,null,null,null,null,null,0]
["4.6 Active necorporale",null,null,null,null,null,null,null,null,null,null,null,null,null,null,null,null,null,null,null,null,null,null,null,null,null,null,null,null,null,null,null,null,null,null,null,null,null,null,null,null,null,null,null,null,null,null,null,null,null,null,null,0]
["Capitolul 5 Alte cheltuieli - total, din care:",null,null,null,null,null,null,null,null,null,null,null,null,null,null,null,null,null,null,null,null,null,null,null,null,null,null,null,null,null,null,null,null,null,null,0,null,null,null,null,null,null,null,null,0,null,null,null,null,null,null,null,0]
["5.1 Organizare de şantier",null,null,null,null,null,null,null,null,null,null,null,null,null,null,null,null,null,null,null,null,null,null,null,null,null,null,null,null,null,null,null,null,null,null,0,null,null,null,null,null,null,null,null,0,null,null,null,null,null,null,null,0]
["      5.1.1 Lucrări de construcţii şi instalaţii aferente organizării de şantier",null,null,null,null,null,null,null,null,null,null,null,null,null,null,null,null,null,null,null,null,null,null,null,null,null,null,null,null,null,null,null,null,null,null,null,null,null,null,null,null,null,null,null,null,null,null,null,null,null,null,null,0]
["      5.1.2 Cheltuieli conexe orgănizării şantierului",null,null,null,null,null,null,null,null,null,null,null,null,null,null,null,null,null,null,null,null,null,null,null,null,null,null,null,null,null,null,null,null,null,null,null,null,null,null,null,null,null,null,null,null,null,null,null,null,null,null,null,0]
["5.2 Comisioane, cote, taxe, costul creditului",null,null,null,null,null,null,null,null,null,null,null,null,null,null,null,null,null,null,null,null,null,null,null,null,null,null,null,null,null,null,null,null,null,null,0,null,null,null,null,null,null,null,null,0,null,null,null,null,null,null,null,0]
["      5.2.1 Comisioanele și dobânzile aferente creditului băncii finanțatoare",null,null,null,null,null,null,null,null,null,null,null,null,null,null,null,null,null,null,null,null,null,null,null,null,null,null,null,null,null,null,null,null,null,null,null,null,null,null,null,null,null,null,null,null,null,null,null,null,null,null,null,0]
["      5.2.2 Cota aferentă ISC pentru controlul calității lucrărilor de construcții",null,null,null,null,null,null,null,null,null,null,null,null,null,null,null,null,null,null,null,null,null,null,null,null,null,null,null,null,null,null,null,null,null,null,null,null,null,null,null,null,null,null,null,null,null,null,null,null,null,null,null,0]
["      5.2.3 Cota aferentă ISC pentru controlul statului în amenajarea teritoriului, urbanism și pentru autorizarea lucrărilor de construcţii",null,null,null,null,null,null,null,null,null,null,null,null,null,null,null,null,null,null,null,null,null,null,null,null,null,null,null,null,null,null,null,null,null,null,null,null,null,null,null,null,null,null,null,null,null,null,null,null,null,null,null,0]
["      5.2.4 Cota aferentă Casei Sociale a Constructorilor - CSC",null,null,null,null,null,null,null,null,null,null,null,null,null,null,null,null,null,null,null,null,null,null,null,null,null,null,null,null,null,null,null,null,null,null,null,null,null,null,null,null,null,null,null,null,null,null,null,null,null,null,null,0]
["      5.2.5 Taxe pentru acorduri, avize conforme și autorizașia de construire/desființare",null,null,null,null,null,null,null,null,null,null,null,null,null,null,null,null,null,null,null,null,null,null,null,null,null,null,null,null,null,null,null,null,null,null,null,null,null,null,null,null,null,null,null,null,null,null,null,null,null,null,null,0]
["5.3 Cheltuieli diverse şi neprevăzute",null,null,null,null,null,null,null,null,null,null,null,null,null,null,null,null,null,null,null,null,null,null,null,null,null,null,null,null,null,null,null,null,null,null,null,null,null,null,null,null,null,null,null,null,null,null,null,null,null,null,null,0]
["5.4 Cheltuieli pentru informare și publicitate",null,null,null,null,null,null,null,null,null,null,null,null,null,null,null,null,null,null,null,null,null,null,null,null,null,null,null,null,null,null,null,null,null,null,null,null,null,null,null,null,null,null,null,null,null,null,null,null,null,null,null,0]
["Capitolul 6 Cheltuieli pentru darea în exploatare - total, din care:",null,null,null,null,null,null,null,null,null,null,null,null,null,null,null,null,null,null,null,null,null,null,null,null,null,null,null,null,null,null,null,null,null,null,0,null,null,null,null,null,null,null,null,0,null,null,null,null,null,null,null,0]
["6.1 Pregătirea personalului de exploatare",null,null,null,null,null,null,null,null,null,null,null,null,null,null,null,null,null,null,null,null,null,null,null,null,null,null,null,null,null,null,null,null,null,null,null,null,null,null,null,null,null,null,null,null,null,null,null,null,null,null,null,0]
["6.2 Probe tehnologice şi teste",null,null,null,null,null,null,null,null,null,null,null,null,null,null,null,null,null,null,null,null,null,null,null,null,null,null,null,null,null,null,null,null,null,null,null,null,null,null,null,null,null,null,null,null,null,null,null,null,null,null,null,0]
["Capitolul 7 Cheltuieli proiecte servicii - total, din care:",null,null,null,null,null,null,null,null,null,null,null,null,null,null,null,null,null,null,null,null,null,null,null,null,null,null,null,null,null,null,null,null,null,null,0,null,null,null,null,null,null,null,null,0,null,null,null,null,null,null,null,0]
["7.1 Cheltuieli cu personalul",null,null,null,null,null,null,null,null,null,null,null,null,null,null,null,null,null,null,null,null,null,null,null,null,null,null,null,null,null,null,null,null,null,null,null,null,null,null,null,null,null,null,null,null,null,null,null,null,null,null,null,0]
["7.2  Cheltuieli pentru derularea proiectului",null,null,null,null,null,null,null,null,null,null,null,null,null,null,null,null,null,null,null,null,null,null,null,null,null,null,null,null,null,null,null,null,null,null,null,null,null,null,null,null,null,null,null,null,null,null,null,null,null,null,null,0]
["TOTAL GENERAL",null,null,null,null,null,null,null,null,null,null,null,null,null,null,null,null,null,null,null,null,null,null,null,null,null,null,null,null,null,null,null,null,null,null,0,null,null,null,null,null,null,null,null,0,null,null,null,null,null,null,null,0]
["Verificare actualizare",null,null,null,null,null,null,null,null,null,null,null,null,null,null,null,null,null,null,null,null,null,null,null,null,null,null,null,null,null,null,{"$error":"#DIV/0!"},null,null,0,"actualizare mai mică de 5% din valoarea eligibila"]
["ACTUALIZARE Cheltuieli Eligibile (max 5%)",null,null,null,null,null,null,null,null,null,null,null,null,null,null,null,null,null,null,null,null,null,null,null,null,null,null,null,null,null,null,null,null,null,null,null,null,null,null,null,null,null,null,null,null,null,null,null,null,null,null,null,0]
["TOTAL GENERAL CU ACTUALIZARE",null,null,null,null,null,null,null,null,null,null,null,null,null,null,null,null,null,null,null,null,null,null,null,null,null,null,null,null,null,null,null,null,null,null,0,null,null,null,null,null,null,null,null,0,null,null,null,null,null,null,null,0]
["Valoare TVA",null,null,null,null,null,null,null,null,null,null,null,null,null,null,null,null,null,null,null,null,null,null,null,null,null,null,null,null,null,null,null,null,null,null,null,null,null,null,null,null,null,null,null,null,null,null,null,null,null,null,null,0]
[]
["TOTAL GENERAL inclusiv TVA",null,null,null,null,null,null,null,null,null,null,null,null,null,null,null,null,null,null,null,null,null,null,null,null,null,null,null,null,null,null,null,null,null,null,0]
[null,null,null,null,null,null,null,null,null,null,null,null,null,null,null,null,null,null,null,null,null,null,null,null,null,null,null,null,null,null,null,null,null,null,null,"LEI",null,null,null,null,null,null,null,null,"EURO"]
["VALOARE TOTALĂ",null,null,null,null,null,null,null,null,null,null,null,null,null,null,null,null,null,null,null,null,null,null,null,null,null,null,null,null,null,null,null,null,null,null,0,null,null,null,null,null,null,null,null,0]
["VALOARE ELIGIBILĂ",null,null,null,null,null,null,null,null,null,null,null,null,null,null,null,null,null,null,null,null,null,null,null,null,null,null,null,null,null,null,null,null,null,null,0,null,null,null,null,null,null,null,null,0]
["VALOARE NEELIGIBILĂ",null,null,null,null,null,null,null,null,null,null,null,null,null,null,null,null,null,null,null,null,null,null,null,null,null,null,null,null,null,null,null,null,null,null,0,null,null,null,null,null,null,null,null,0]
["Plan Financiar",null,null,null,null,null,null,null,null,null,null,null,null,null,null,null,null,null,null,null,null,null,null,null,null,null,null,null,null,null,null,null,null,null,null,"Cheltuieli eligibile EURO",null,null,null,null,null,null,null,null,"Cheltuieli neeligibile EURO",null,null,null,null,null,null,null,"Total"]
["Ajutor public nerambursabil (contribuţie UE şi cofinanţare naţională)",null,null,null,null,null,null,null,null,null,null,null,null,null,null,null,null,null,null,null,null,null,null,null,null,null,null,null,null,null,null,null,null,null,null,null,null,null,null,null,null,null,null,null,null,null,null,null,null,null,null,null,0]
["Cofinantare privata, din care:",null,null,null,null,null,null,null,null,null,null,null,null,null,null,null,null,null,null,null,null,null,null,null,null,null,null,null,null,null,null,null,null,null,null,0,null,null,null,null,null,null,null,null,0,null,null,null,null,null,null,null,0]
[null,null,null,null,null,null,null,null,null,null,null,null,null,null,null,"- autofinantare",null,null,null,null,null,null,null,null,null,null,null,null,null,null,null,null,null,null,null,null,null,null,null,null,null,null,null,null,null,null,null,null,null,null,null,null,0]
[null,null,null,null,null,null,null,null,null,null,null,null,null,null,null,"- imprumuturi",null,null,null,null,null,null,null,null,null,null,null,null,null,null,null,null,null,null,null,null,null,null,null,null,null,null,null,null,null,null,null,null,null,null,null,null,0]
["Buget local",null,null,null,null,null,null,null,null,null,null,null,null,null,null,null,null,null,null,null,null,null,null,null,null,null,null,null,null,null,null,null,null,null,null,null,null,null,null,null,null,null,null,null,null,null,null,null,null,null,null,null,0]
["TOTAL PROIECT",null,null,null,null,null,null,null,null,null,null,null,null,null,null,null,null,null,null,null,null,null,null,null,null,null,null,null,null,null,null,null,null,null,null,0,null,null,null,null,null,null,null,null,0,null,null,null,null,null,null,null,0]
["Procent contribuţie publică",null,null,null,null,null,null,null,null,null,null,null,null,null,null,null,null,null,null,null,null,null,null,null,null,null,null,null,null,null,null,null,null,{"$error":"#DIV/0!"},0,0,null,null,null,null,null,null,null,"%"]
["Avans solicitat"]
["Procent avans solicitat ca procent din ajutorul public nerambursabil",null,null,null,null,null,null,null,null,null,null,null,null,null,null,null,null,null,null,null,null,null,null,null,null,null,null,null,null,null,null,null,null,null,{"$error":"#DIV/0!"},0,null,null,null,null,null,null,null,null,"Suma avans mai mica de 50% din ajutorul public"]
[]
[null,null,null,null,null,null,null,null,null,null,null,null,null,null,null,null,null,null,null,null,null,null,null,null,null,null,null,null,null,null,"SECŢIUNE SPECIFICĂ"]
[]
[]
["D. ALTE INFORMAȚII :"]
["Programarea proiectului:"]
["Numar luni de implementare"]
[]
["E. Lista documentelor pentru masura M5/1B/6B - „Promovarea și facilitarea valorificării produselor locale”",null,null,null,null,null,null,null,null,null,null,null,null,null,null,null,null,null,null,null,null,null,null,null,null,null,null,null,null,null,null,null,null,null,null,null,null,null,null,null,null,null,null,null,null,null,null,null,null,null,null,null,null,null,null,"OPIS"]
[null,null,null,null,null,null,null,null,null,null,null,null,null,null,null,null,null,null,null,null,null,null,null,null,null,null,null,null,null,null,null,null,null,null,null,null,null,null,null,null,null,null,null,null,null,null,null,null,null,null,null,null,null,null,null,"documente"]
["Documentele se vor anexa cererii de finanțare în ordinea de mai jos:"]
["Lista documente",null,null,null,null,null,null,null,null,null,null,null,null,null,null,null,null,null,null,null,null,null,null,null,null,null,null,null,null,null,"Obligatoriu pentru toate proiectele",null,null,null,null,"Obligatoriu, dacă proiectul impune",null,null,null,null,null,null,"PAGINA de la - până la",null,null,null,null,null,null,null,"Obligatoriu pentru toate proiectele",null,null,null,null,"Obligatoriu, dacă proiectul impune"]
["ETAPA:",null,null,null,null,null,null,null,null,null,null,null,null,null,null,null,null,null,null,null,null,null,null,null,null,null,null,null,null,null,"DEPUNERE",null,null,null,null,null,null,null,null,null,null,null,null,null,null,null,null,null,null,null,"CONTRACTARE"]
["1 Studiu de Fezabilitate/Documentaţie de Avizare pentru Lucrări de Intervenţii, întocmite, avizate și verificate în condițiile legii și însoțite de toate studiile, expertizele, avizele și acordurile specifice fiecărui tip de investiție, conform reglementărilor legale în vigoare\nsau"]
["2. Certificat de Urbanism completat și eliberat conform reglementărilor legale în vigoare și aflate în termenul de valabilitate la data depunerii cererii de finanțare"]
["3. Pentru ONG-uri - Documente doveditoare privind dreptul de proprietate / administrare pe o perioadă de 10 ani, asupra bunurilor imobile, conform Cererii de finanțare.\nNotă:\nDocumentele pentru terenurile și/sau clădirile aferente realizării investițiilor vor reprezenta înscrisuri valabile pentru o perioadă de cel puțin 10 ani începând cu anul depunerii Cererii de finanţare care să certifice, după caz:\na) dreptul de proprietate privată;\nb) dreptul de concesiune; \nc) dreptul de superficie;\nd) dreptul de uzufruct; \ne) dreptul de folosinţă cu titlu gratuit; \nf) împrumutul de folosință (comodat);\ng) dreptul de închiriere / locațiune. "]
["4. Autorizaţie sanitară / notificare de constatare a conformităţii cu legislaţia sanitară emise cu cel mult un an înaintea depunerii Cererii de finanţare, pentru unitățile care se se autorizează / avizează conform legislației în vigoare și pentru unitățile care se modernizează, după caz"]
["5.Hotârârea Adunării Generale a Asociaților (AGA) pentru implementarea proiectului"]
["6. Document care să ateste ca solicitantul a depus documentaţia la ANPM:"]
["6.1 Clasarea notificării\nsau"]
["6.2 Decizia etapei de încadrare, ca document final (prin care se precizează că proiectul nu se supune evaluării impactului asupra mediului şi nici evaluării adecvate)\nsau"]
["3.3 Acord de mediu în cazul în care se impune evaluarea impactului preconizat asupra mediului\nsau"]
["6.4 Acord de mediu în cazul evaluării impactului asupra mediului și de evaluare adecvată (dacă este cazul).\nsau"]
["6.5 Aviz Natura 2000 pentru proiectele care impun doar evaluare adecvată."]
["7. Certificatul de înregistrare fiscală"]
["8. Încheiere privind înscrierea în Registrul Asociațiilor și Fundațiilor, rămasă definitivă / Certificat de înregistrare în Registrul Asociatiilor si Fundatiilor"]
["9. Actul de înfiinţare şi statutul ONG-ului"]
["10. Raport asupra utilizării programelor de finanţare nerambursabilă întocmit de solicitant (va cuprinde amplasamentul, obiective, tip de investiţie, lista cheltuielilor eligibile, costuri şi stadiul proiectului, perioada derulării proiectului), pentru solicitanţii care au mai beneficiat de finanţare nerambursabilă începând cu anul 2007 pentru aceleaşi tipuri de investiţii/servicii."]
["11. Extrasul din Strategia de Dezvoltară Locală a GAL FS-TP aprobată de AM-PNDR, care confirmă dacă investiția este în corelare cu aceasta, corespunzătoare domeniului de investiție propus prin proiect."]
["12. Copia Documentului de identitate al reprezentantului legal al beneficiarului."]
["13. Documente care atestă expertiza și calificarea experților de a implementa activitățile proiectului (CV-uri, diplome, certificate, recomandări, atestate etc.)."]
["14. Oferte conforme – documente obligatorii care trebuie avute în vedere la stabilirea rezonabilității prețurilor. Se va lua în considerare, în primul rând, Baza de date cu prețuri maximale de pe site-ul AFIR (www.afir.info). "]
["15. Declarație pe propria răspundere specifică GAL FS-TP (Anexa 11 la Ghid)."]
["16. Anexa 12 - Declarația privind prelucrarea datelor cu caracter personal  - in favoarea GAL."]
["17. Document de la bancă / trezorerie cu datele de identificare ale băncii / trezoreriei şi ale contului aferent proiectului FEADR (denumirea, adresa băncii / trezoreriei, codul IBAN al contului în care se derulează operaţiunile cu AFIR)."]
["18. Certificate care să ateste lipsa datoriilor fiscale restante și graficul de\nreeșalonare a datoriilor către bugetul consolidat (daca este cazul)."]
["19. Document emis de ANPM conform protocolului de colaborare dintre AFIR și ANPM-GM, după caz, dacă proiectul impune. "]
["20. Document emis de DSP conform protocolului de colaborare dintre AFIR și MS, după caz, dacă proiectul impune. "]
["21. Document emis de DSVSA conform protocolului de colaborare dintre ANSVSA și ANPM-GM, după caz, dacă proiectul impune. "]
["22. Certificatul de cazier judiciar ((fără înscrieri privind sancţiuni economico-financiare) al solicitantului si reprezentantului legal, în original, valabil la data încheierii Contractului de finanțare, în conformitate cu prevederile Legii nr. 290/2004 privind cazierul judiciar, republicată, cu modificările şi completările ulterioare) (in original)"]
["23. Cazier fiscal al solicitantului (în original)."]
["24. Extras de Carte Funciară pentru informare, dacă este cazul"]
["25. Proiectul Tehnic (PT) care va respecta prevederile legale în vigoare privind conținutul cadru al documentației tehnico-economice aferente investițiilor, precum și a structurii și metodologiei de elaborare a devizului general pentru obiective de investiții și lucrări de intervenții – dacă este cazul"]
["26. Dovada achitării integrale a datoriei față de AFIR, inclusiv dobânzile și majorările de întârziere - dacă este cazul."]
["27. Declarația de eșalonare a depunerii Dosarelor Cererilor de Plată, inclusiv cea pentru decontarea TVA (unde este cazul)."]
["28 ALTE DOCUMENTE JUSTIFICATIVE (SE VOR SPECIFICA DUPĂ CAZ) pe care solicitantul le poate aduce în scopul susținerii proiectului."]
[]
[]
[]
[]
[]
[]
[]
[]
[]
["F. DECLARAŢIE PE PROPRIA RĂSPUNDERE A SOLICITANTULUI"]
["Prin această declaraţie solicitantul"]
[]
["care solicită asistență financiară nerambursabilă prin programul FEADR pentru proiectul intitulat"]
[]
["prin reprezentant legal"]
[]
["cunoscând prevederile legii penale cu privire la falsul în declarații:"]
[null,null,null,"1. Declar că proiectul propus asistenței financiare nerambursabile FEADR nu beneficiază de altă finanțare din\nprograme de finanțare nerambursabilă."]
["De asemenea mă angajez ca în cazul în care proiectul va fi selectat pentru finanțare FEADR, nu voi depune acest\nproiect la nici un alt program de finanțare nerambursabilă la care proiectul poate fi în întregime sau parțial eligibil\npentru asistență."]
[null,null,null,"2. Declar că îndeplinesc condițiile de eligibilitate prevăzute în fișa sub-măsurii și Ghidul Solicitantului și mă\nangajez să le respect pe perioada de valabilitate a contractului de finanțare și monitorizare a investiției, inclusiv\ncriteriile de selecție pentru care proiectul a fost punctat."]
[null,null,null,"3. Declar că toate informațiile din prezenta cerere de finanțare și din documentele anexate sunt corecte și mă\nangajez să respect condițiile cerute în reglementările referitoare la prezentul program și pe cele legate de\nproiectul anexat și să furnizez periodic, la cerere, documentele justificative necesare."]
[null,null,null,"4. Declar pe propria răspundere că orice modificări aduse dreptului de proprietate sau de folosință vor fi\nnotificate AFIR în termen de trei zile de la data producerii lor."]
["5. Declar că eu și organizația mea (ADI sau ONG) nu ne aflăm într-unul din următoarele cazuri:"]
[null,null,null,"Acuzat din cauza unei greșeli privind conduita profesională având ca soluție finală res judicata (împotriva căreia nici un apel nu este posibil)"]
[null,null,null,"Vinovat de grave deficiențe de conduită profesională dovedite prin orice mijloace pe care Agenția le poate justifica."]
[null,null,null,"Vinovat de faptul că nu am prezentat informaţiile cerute de autoritatea contractantă ca o condiţie de participare la licitaţie sau contractare"]
[null,null,null,"Încălcarea prevederilor contractuale prin care nu mi-am îndeplinit obligațiile contractuale în legătură cu un alt contract cu Agenția sau alte contracte finanțate din fonduri comunitare."]
[null,null,null,"Încercarea de a obține informații confidențiale sau de influențare a Agenției în timpul procesului de evaluare a proiectului și nu voi face presiuni la adresa evaluatorului."]
["6.",null,null,null,null,"Declar că organizația pe care o reprezint ARE datorii către instituții de credit și/sau instituții financiare\nnebancare. În acest sens, atașez Graficul de rambursare a datoriilor și document de la bancă pentru\ncertificarea respectării graficului de rambursare."]
[null,null,null,null,null,"Declar că organizația pe care o reprezint NU are datorii către instituții de credit şi/sau instituții financiare\nnebancare."]
["7.",null,null,null,null,"Declar pe propria răspundere ca în cazul în care nu respect oricare din punctele prevăzute în această\ndeclarație proiectul să devină neeligibil în baza criteriului \"Eligibilitatea solicitantului\" sau contractul să fie\nreziliat."]
["8.",null,null,null,null,"Declar pe propria răspundere că:"]
[null,null,null,null,null,"Nu sunt înregistrat în scopuri TVA și că mă angajez să notific Agenției orice modificare a situatiei privind înregistrarea ca plătitor de TVA, în maximum 10 (zece) zile de la data înregistrării în scopuri TVA."]
[null,null,null,null,null,"Sunt înregistrat în scopuri de TVA (certificat de înregistrare fiscală în scopuri de TVA)."]
["9.",null,null,null,null,"Declar pe propria răspundere că nu am înscrieri care privesc sancțiuni economico-financiare în cazierul\njudiciar pe care mă oblig să îl depun la încheierea contractului de finanțare."]
["10.",null,null,null,null,"Declar pe propria raspundere că nu am fapte înscrise în cazierul fiscal."]
["11.",null,null,null,null,"Declar pe propria răspundere că toate cheltuielile neeligibile vor fi suportate de solicitant și că acestea vor fi realizate până la finalizarea proiectului."]
["12.",null,null,null,null,"Declar pe proprie raspundere ca voi achita integral datoria fata de AFIR, inclusiv dobanzile si majorarile de\nintarziere pana la semnarea contractului de finantare (pentru solicitantii inregistrati in registrul debitorilor AFIR atat pentru programul SAPARD cat si pentru FEADR)."]
["13.",null,null,null,null,"Ma angajez ca in termenul precizat in Ghidul Solicitantului, de la data primirii \"Notificarii benficiarului privind selectarea cererii de finantare si semnarea contractului de finantare\", sa asigur si sa prezint documentele obligatorii mentionate in Ghidul solicitantului pentru contractarea proiectului."]
["14.",null,null,null,null,"Declar pe propria răspundere ca nu sunt în insolventă sau incapacitate de plată."]
["15.",null,null,null,null,"Declar pe propria răspundere că în conformitate cu termenul menţionat în notificarea AFIR privind selecţia\ncererii de finanţare, voi obţine şi depune, înainte de semnarea contractului de finanţare, documentul emis de ANPM menţionat în secţiunea E punctul 4 a cererii de finanţare."]
[null,null,null,null,null,null,null,null,null,null,null,null,null,null,null,null,null,null,null,null,null,null,null,null,null,null,null,null,null,null,null,null,null,null,null,null,null,null,null,null,null,null,null,null,null,null,null,null,null,null,null,null,"DA/NU"]
["16. Accept publicarea pe site-ul AFIR a datelor mele cu respectarea legislaţiei naţionale şi europene privind transparenţa."]
[]
[]
[]
["Semnătura reprezentant legal şi ştampila",null,null,null,null,null,null,null,null,null,null,null,null,null,null,null,null,null,null,null,null,null,null,null,null,null,null,null,null,null,null,null,null,null,null,null,null,null,null,null,null," Data:"]
[]
[]
["Anexa INDICATORI DE MONITORIZARE MĂSURA M5/1B/6B"]
["Populația netă care beneficiază de servicii/infrastructuri îmbunătățite"]
[]
[]
[]
[]
["Anexa INDICATORI DE MONITORIZARE -                         NU SE APLICA"]
["Masura M5/1B/6B - „Promovarea și facilitarea valorificării produselor locale”"]
["1. Tipul sprijinului",null,null,null,null,null,null,null,null,null,null,null,null,null,null,null,null,"a. Restaurarea, conservarea și dotarea clădirilor/monumentelor din patrimoniul cultural imobil de interes local de clasă B"]
[null,null,null,null,null,null,null,null,null,null,null,null,null,null,null,null,null,"b. Construcția, extinderea și/sau modernizarea drumurilor de acces ale așezămintelor monahale de clasă B"]
[null,null,null,null,null,null,null,null,null,null,null,null,null,null,null,null,null,"c. Restaurarea, conservarea și/sau dotarea așezămintelor monahale de clasă B"]
[null,null,null,null,null,null,null,null,null,null,null,null,null,null,null,null,null,"d. Modernizarea, renovarea și/sau dotarea căminelor culturale"]
["2. Număr locuitori deserviţi"]
["3. Zonă montană",null,null,null,null,null,null,null,null,null,null,null,null,null,null,null,null,"Da"]
[null,null,null,null,null,null,null,null,null,null,null,null,null,null,null,null,null,"Nu"]
["4. Contribuie la Prioritatea 1",null,null,null,null,null,null,null,null,null,null,null,null,null,null,null,null,"M01 - Transfer de cunoştinţe şi acţiuni de informare"]
[null,null,null,null,null,null,null,null,null,null,null,null,null,null,null,null,null,"M02 - Servicii de consiliere"]
[null,null,null,null,null,null,null,null,null,null,null,null,null,null,null,null,null,"M16 - Cooperare"]
[]
["Indic. nr. 1 - se va bifa doar o singura categorie/ categoria majoritara"]
["Indic. nr. 2 - se va completa numărul locuitorilor deserviţi"]
["Indic. nr. 3 - se va completa cu \"DA\" în cazul în care investiţia este amplasată în zonă montană (cf. Listei UAT din Zonele Montane); în caz contrar se va completa \"NU\""]
["Indic. nr. 4 - se va completa din momentul demararii M01, M02, respectiv M16, cu bifa în dreptul măsurii corespunzătoare, dacă va fi cazul."]
["Pentru indicatorii de tip numeric care nu fac obiectul investitiei sa va completa valoarea zero."]
[]
["Factori de risc"]
["I1. Valoarea sprijinului public nerambursabil (EURO)",null,null,null,null,null,null,null,null,null,null,null,null,null,null,null,null,null,null,null,null,null,null,null,null,null,null,null,null,null,null,null,null,null,null,null,null,null,null,null,null,null,null,null,null,null,null,null,null,null,null,"Punctaj obţinut"]
["•",null,"400.001 → 500.000",null,null,null,null,null,null,null,null,null,null,null,null,null,null,null,null,null,null,null,null,null,null,null,null,null,null,null,null,null,null,null,null,null,null,null,null,null,null,null,null,null,null,null,null,null,null,null,null,5]
["•",null,"200.001 → 400.000",null,null,null,null,null,null,null,null,null,null,null,null,null,null,null,null,null,null,null,null,null,null,null,null,null,null,null,null,null,null,null,null,null,null,null,null,null,null,null,null,null,null,null,null,null,null,null,null,4]
["•",null,"100.001 → 200.000",null,null,null,null,null,null,null,null,null,null,null,null,null,null,null,null,null,null,null,null,null,null,null,null,null,null,null,null,null,null,null,null,null,null,null,null,null,null,null,null,null,null,null,null,null,null,null,null,3]
["•",null,"5.000 ≤ 100.000",null,null,null,null,null,null,null,null,null,null,null,null,null,null,null,null,null,null,null,null,null,null,null,null,null,null,null,null,null,null,null,null,null,null,null,null,null,null,null,null,null,null,null,null,null,null,null,null,1]
[]
["I2. Complexitatea investitiei"]
["Solicitanți Publici",null,null,null,null,null,null,null,null,null,null,null,null,null,null,null,null,null,null,null,"Punctaj obţinut",null,null,null,null,null,null,null,null,null,"Solicitanți Privați",null,null,null,null,null,null,null,null,null,null,null,null,null,null,null,null,null,null,null,null,"Punctaj obţinut"]
["•",null,"Investiție nouă",null,null,null,null,null,null,null,null,null,null,null,null,null,null,null,null,null,null,null,null,null,null,null,null,5,null,null,"•",null,"Investiție nouă",null,null,null,null,null,null,null,null,null,null,null,null,null,null,null,null,null,null,null,null,null,null,null,null,null,5]
["•",null,"Modernizări fără C+M(dotări)",null,null,null,null,null,null,null,null,null,null,null,null,null,null,null,null,null,null,null,null,null,null,null,null,3,null,null,"•",null,"Modernizări fără C+M(dotări)",null,null,null,null,null,null,null,null,null,null,null,null,null,null,null,null,null,null,null,null,null,null,null,null,null,3]
[]
["I3. Riscul proiectului d.p.d.v. al raportului procentual între Cheltuielile suportate de Solicitant și Valoarea ajutorului nerambursabil",null,null,null,null,null,null,null,null,null,null,null,null,null,null,null,null,null,null,null,null,null,null,null,null,null,null,null,null,null,null,null,null,null,null,null,null,null,null,null,null,null,null,null,null,null,null,null,null,null,null,"Punctaj obţinut"]
["Total valoare proiect(fără TVA)\n% = --------------------------------------------------------- x 100\nValoarea ajutorului nerambursabil solicitat"]
["•",null,"> 110%",null,null,null,null,null,null,null,null,null,null,null,null,null,null,null,null,null,null,null,null,null,null,null,null,null,null,null,null,null,null,null,null,null,null,null,null,null,null,null,null,null,null,null,null,null,null,null,null,5]
["•",null,"între 101 si 110%",null,null,null,null,null,null,null,null,null,null,null,null,null,null,null,null,null,null,null,null,null,null,null,null,null,null,null,null,null,null,null,null,null,null,null,null,null,null,null,null,null,null,null,null,null,null,null,null,3]
["•",null," = 100%",null,null,null,null,null,null,null,null,null,null,null,null,null,null,null,null,null,null,null,null,null,null,null,null,null,null,null,null,null,null,null,null,null,null,null,null,null,null,null,null,null,null,null,null,null,null,null,null,1]
[]
["I4. Capacitatea solicitantului de a manageria proiectul, experiența în implementarea proiectelor finanțate din fonduri comunitare",null,null,null,null,null,null,null,null,null,null,null,null,null,null,null,null,null,null,null,null,null,null,null,null,null,null,null,null,null,null,null,null,null,null,null,null,null,null,null,null,null,null,null,null,null,null,null,null,null,null,"Punctaj obţinut"]
["•",null,"Solicitant care nu a implementat un alt proiect SAPARD/FEADR, comunitar sau\nnu a obținut asistență financiară nerambursabilă din partea altui instrument\nfinanciar.",null,null,null,null,null,null,null,null,null,null,null,null,null,null,null,null,null,null,null,null,null,null,null,null,null,null,null,null,null,null,null,null,null,null,null,null,null,null,null,null,null,null,null,null,null,null,null,null,5]
["•",null,"Solicitant care are experiența implementării și care a finalizat un proiect\nSAPARD/FEADR, comunitar sau obținut asistență financiară nerambursabilă din partea altui instrument financiar ",null,null,null,null,null,null,null,null,null,null,null,null,null,null,null,null,null,null,null,null,null,null,null,null,null,null,null,null,null,null,null,null,null,null,null,null,null,null,null,null,null,null,null,null,null,null,null,null,3]
["•",null,"Solicitant care are experiența implementării și care a finalizat un proiect\nSAPARD/FEADR și un alt proiect comunitar sau obținut din asistența financiară\nnerambursabilă din partea altui instrument financiar",null,null,null,null,null,null,null,null,null,null,null,null,null,null,null,null,null,null,null,null,null,null,null,null,null,null,null,null,null,null,null,null,null,null,null,null,null,null,null,null,null,null,null,null,null,null,null,null,1]
[]
["I5. Tipul solicitantului",null,null,null,null,null,null,null,null,null,null,null,null,null,null,null,null,null,null,null,null,null,null,null,null,null,null,null,null,null,null,null,null,null,null,null,null,null,null,null,null,null,null,null,null,null,null,null,null,null,null,"Punctaj obtinut"]
["• Comune",null,null,null,null,null,null,null,null,null,null,null,null,null,null,null,null,null,null,null,null,null,null,null,null,null,null,null,null,null,null,null,null,null,null,null,null,null,null,null,null,null,null,null,null,null,null,null,null,null,null,5]
["• ONG",null,null,null,null,null,null,null,null,null,null,null,null,null,null,null,null,null,null,null,null,null,null,null,null,null,null,null,null,null,null,null,null,null,null,null,null,null,null,null,null,null,null,null,null,null,null,null,null,null,null,4]
["• Unitati de cult",null,null,null,null,null,null,null,null,null,null,null,null,null,null,null,null,null,null,null,null,null,null,null,null,null,null,null,null,null,null,null,null,null,null,null,null,null,null,null,null,null,null,null,null,null,null,null,null,null,null,3]
["• Alte Tipuri",null,null,null,null,null,null,null,null,null,null,null,null,null,null,null,null,null,null,null,null,null,null,null,null,null,null,null,null,null,null,null,null,null,null,null,null,null,null,null,null,null,null,null,null,null,null,null,null,null,null,1]
["TOTAL"]
[]
["Pentru selectarea proiectelor ce vor fi verificate prin sondaj, se va determina riscul fiecărui proiect folosind cei 4 factori de risc (I1, I2, I3 și I4 )."]
["Factorii de risc sunt adaptați conform specificului Sub-Măsurii 7.6 din PNDR 2014-2020."]
["Pentru fiecare proiect se va determina punctajul fiecărui factor de risc pe o scară de la 1 la 5."]
[]
["Codul unic de inregistrare APIA"]
["In cazul in care nu aveti un cod unic de inregistrare APIA, completati acest formular. "]
[]
["FORMULAR"]
[]
["Programului naţional de dezvoltare rurală 2014 - 2020"]
[]
["Denumire solicitant:"]
[]
["Categorie Solicitant:"]
[]
["Sediul / Adresa"]
[]
["Ţara",null,null,null,null,"România",null,null,null,null,null,null,null,null,"Judeţul",null,null,null,null,null,null,null,null,null,null,null,null,null,null,null,null,null,null,"oraşul"]
[]
["comuna",null,null,null,null,null,null,null,null,null,null,null,null,null,null,null,null,null,null,null,null,"satul",null,null,null,null,null,null,null,null,null,null,null,null,null,null,null,null,null,"strada"]
[]
["nr.",null,null,null,null,null,null,null,"bl.",null,null,null,null,null,"et.",null,null,null,null,"ap.",null,null,null,null,null,"sectorul",null,null,null,null,null,null,null,null,null,null,null,null,"codul poştal"]
[]
["Număr de telefon",null,null,null,null,null,null,null,null,null,null,null,null,null,null,null,null,null,null,null,null,null,null,"Fax",null,null,null,null,null,null,null,null,null,null,null,null,null,null,"E-mail"]
[]
["Număr de înregistrare în registrul comerțului/Registrul asociațiilor și fundațiilor"]
[]
["CUI / CIF"]
[]
["Cod CAEN pentru activitatea principală"]
[]
["Cod CAEN pentru activitatea secundară pentru care se solicită înregistrarea în Registrul unic de identificare"]
[]
["Cod IBAN"]
[]
["deschis la Banca"]
[]
["Sucursala / Agenție"]
[]
["Prin reprezentant legal, doamna/domnul"]
[]
["cu CNP",null,null,null,null,null,null,null,null,null,null,null,null,null,null,"solicit înscrierea în Registrul unic de îdentificare - Agenţia de Plăţi şi Intervenţie pentru Agricultură."]
[]
["Am luat la cunoştinţă că orice modificare a informaţiilor de mai sus trebuie furnizată către APIA în termen de maximum 10 zile lucrătoare de la producerea acestora.\nDeclar pe propria răspundere că cele de mai sus sunt conforme cu realitatea.\nSunt de acord ca datele din cerere să fie introduse în baza de date a Sistemului Integrat de Administrare şi Control, procesate şi verificate în vederea înscrierii în Registrul unic de identificare şi transmise autorităţilor responsabile în vederea elaborării de studii statistice şi de evaluări economice, în condiţiile Legii nr. 677-2001 pentru protecţia persoanelor cu privire la prelucrarea datelor cu caracter personal şi libera circulaţie a acestor date, cu modificarile şi completările ulterioare."]
[]
["Reprezentant legal",null,null,null,null,null,null,null,null,null,null,null,null,null,null,null,null,null,null,null,null,null,null,null,null,null,null,null,null,null,null,null,null,null,null,null,null,null,null,null,null,null,null,"Data:"]
[]
["Numele şi prenumele"]
[]
["Semnătura "]

{"sheet":"Anexa 1","index":1,"n_rows":93,"n_cols":52,"rows_kept":93,"cut":false,"hidden":false,"merged":[[0,7,0,41],[0,42,1,60],[1,7,1,41],[3,0,3,60],[2,0,2,60],[4,0,4,60],[5,0,5,60],[6,0,6,3],[6,4,6,41],[6,42,6,50],[6,51,6,60],[7,0,7,3],[7,4,7,41],[7,42,7,50],[7,51,7,60],[8,0,8,3],[8,4,8,41],[8,42,8,50],[8,51,8,60],[9,0,9,3],[9,4,9,41],[9,42,9,50],[9,51,9,60],[10,0,10,3],[10,4,10,41],[10,42,10,50],[10,51,10,60],[11,0,11,3],[11,4,11,41],[11,42,11,50],[11,51,11,60],[12,0,12,3],[12,4,12,41],[12,42,12,50],[12,51,12,60],[13,4,13,41],[13,42,13,50],[13,51,13,60],[14,4,14,41],[14,42,14,50],[14,51,14,60],[15,4,15,41],[15,42,15,50],[15,51,15,60],[16,4,16,41],[16,42,16,50],[16,51,16,60],[17,0,17,3],[17,4,17,41],[17,42,17,50],[17,51,17,60],[18,4,18,41],[18,42,18,50],[18,51,18,60],[19,4,19,41],[19,42,19,50],[19,51,19,60],[20,0,20,3],[20,4,20,41],[20,42,20,50],[20,51,20,60],[21,0,21,3],[21,4,21,41],[21,42,21,50],[21,51,21,60],[22,0,22,3],[22,4,22,41],[22,42,22,50],[22,51,22,60],[23,0,23,3],[23,4,23,41],[23,42,23,50],[23,51,23,60],[24,0,24,3],[24,4,24,41],[24,42,24,50],[24,51,24,60],[25,0,25,3],[25,4,25,41],[25,42,25,50],[25,51,25,60],[26,0,26,3],[26,4,26,41],[26,42,26,50],[26,51,26,60],[27,0,27,3],[27,4,27,41],[27,42,27,50],[27,51,27,60],[28,0,28,3],[28,4,28,41],[28,42,28,50],[28,51,28,60],[29,0,29,3],[29,4,29,41],[29,42,29,50],[29,51,29,60],[30,0,30,3],[30,4,30,41],[30,42,30,50],[30,51,30,60],[31,0,31,3],[31,4,31,41],[31,42,31,50],[31,51,31,60],[32,0,32,3],[32,4,32,41],[32,42,32,50],[32,51,32,60],[33,4,33,41],[33,42,33,50],[33,51,33,60],[34,4,34,41],[34,42,34,50],[34,51,34,60],[35,0,35,3],[35,4,35,41],[35,42,35,50],[35,51,35,60],[36,0,36,3],[36,4,36,41],[36,42,36,50],[36,51,36,60],[37,0,37,3],[37,4,37,41],[37,42,37,50],[37,51,37,60],[38,0,38,3],[38,4,38,41],[38,42,38,50],[38,51,38,60],[39,0,39,3],[39,4,39,41],[39,42,39,50],[39,51,39,60],[40,4,40,41],[40,42,40,50],[40,51,40,60],[41,4,41,41],[41,42,41,50],[41,51,41,60],[42,0,42,3],[42,4,42,41],[42,42,42,50],[42,51,42,60],[43,0,43,3],[43,4,43,41],[43,42,43,50],[43,51,43,60],[44,0,44,3],[44,4,44,41],[44,42,44,50],[44,51,44,60],[45,0,45,41],[45,42,45,60],[47,7,47,41],[47,42,48,60],[48,7,48,41],[50,0,50,60],[51,0,51,60],[52,0,52,60],[53,0,53,3],[53,4,53,41],[53,42,53,50],[53,51,53,60],[49,0,49,60],[54,0,54,3],[54,4,54,41],[54,42,54,50],[54,51,54,60],[55,0,55,3],[55,4,55,41],[55,42,55,50],[55,51,55,60],[56,0,56,3],[56,4,56,41],[56,42,56,50],[56,51,56,60],[57,0,57,3],[57,4,57,41],[57,42,57,50],[57,51,57,60],[58,0,58,3],[58,4,58,41],[58,42,58,50],[58,51,58,60],[59,0,59,3],[59,4,59,41],[59,42,59,50],[59,51,59,60],[60,4,60,41],[60,42,60,50],[60,51,60,60],[61,4,61,41],[61,42,61,50],[61,51,61,60],[62,4,62,41],[62,42,62,50],[62,51,62,60],[63,4,63,41],[63,42,63,50],[63,51,63,60],[64,0,64,3],[64,4,64,41],[64,42,64,50],[64,51,64,60],[65,4,65,41],[65,42,65,50],[65,51,65,60],[66,4,66,41],[66,42,66,50],[66,51,66,60],[67,0,67,3],[67,4,67,41],[67,42,67,50],[67,51,67,60],[68,0,68,3],[68,4,68,41],[68,42,68,50],[68,51,68,60],[69,0,69,3],[69,4,69,41],[69,42,69,50],[69,51,69,60],[70,0,70,3],[70,4,70,41],[70,42,70,50],[70,51,70,60],[71,0,71,3],[71,4,71,41],[71,42,71,50],[71,51,71,60],[72,0,72,3],[72,4,72,41],[72,42,72,50],[72,51,72,60],[73,0,73,3],[73,4,73,41],[73,42,73,50],[73,51,73,60],[74,0,74,3],[74,4,74,41],[74,42,74,50],[74,51,74,60],[75,0,75,3],[75,4,75,41],[75,42,75,50],[75,51,75,60],[76,0,76,3],[76,4,76,41],[76,42,76,50],[76,51,76,60],[77,0,77,3],[77,4,77,41],[77,42,77,50],[77,51,77,60],[78,0,78,3],[78,4,78,41],[78,42,78,50],[78,51,78,60],[79,0,79,3],[79,4,79,41],[79,42,79,50],[79,51,79,60],[80,4,80,41],[80,42,80,50],[80,51,80,60],[81,4,81,41],[81,42,81,50],[81,51,81,60],[82,0,82,3],[82,4,82,41],[82,42,82,50],[82,51,82,60],[83,0,83,3],[83,4,83,41],[83,42,83,50],[83,51,83,60],[84,0,84,3],[84,4,84,41],[84,42,84,50],[84,51,84,60],[85,0,85,3],[85,4,85,41],[85,42,85,50],[85,51,85,60],[86,0,86,3],[86,4,86,41],[86,42,86,50],[86,51,86,60],[87,4,87,41],[87,42,87,50],[87,51,87,60],[88,4,88,41],[88,42,88,50],[88,51,88,60],[89,0,89,3],[89,4,89,41],[89,42,89,50],[89,51,89,60],[90,0,90,3],[90,4,90,41],[90,42,90,50],[90,51,90,60],[91,0,91,3],[91,4,91,41],[91,42,91,50],[91,51,91,60],[92,0,92,41],[92,42,92,60]]}
[null,null,null,null,null,null,null,null,null,null,null,null,null,null,null,null,null,null,null,null,null,null,null,null,null,null,null,null,null,null,null,null,null,null,null,null,null,null,null,null,null,null,"Anexa A1\nHG 907/2016"]
[]
["Deviz financiar- Capitolul 3 - Cheltuieli pentru proiectare şi asistenţa tehnică - EURO"]
[]
[]
["(Titlu deviz)"]
["Nr.crt",null,null,null,"Specificaţie",null,null,null,null,null,null,null,null,null,null,null,null,null,null,null,null,null,null,null,null,null,null,null,null,null,null,null,null,null,null,null,null,null,null,null,null,null,"Valoare eligibilă",null,null,null,null,null,null,null,null,"Valoare\nneeligibilă"]
["3.1",null,null,null,"Cheltuieli pentru studii - total din care:",null,null,null,null,null,null,null,null,null,null,null,null,null,null,null,null,null,null,null,null,null,null,null,null,null,null,null,null,null,null,null,null,null,null,null,null,null,{"$f":"AQ9+AQ10+AQ11","v":0},null,null,null,null,null,null,null,null,{"$f":"AZ9+AZ10+AZ11","v":0}]
[null,null,null,null,"3.1.1 Studii de teren: studii geotehnice, geologice, hidrologice, hidrogeotehnice,\nfotogrammetrice, topografica şi de stabilitate ale terenului pe care se amplasează obiectivul de investiţie "]
[null,null,null,null,"3.1.2 Raport privind impactul asupra mediului"]
[null,null,null,null,"3.1.3 Studii de specialitate necesare în funcţie de specificul investiţiei"]
["3.2",null,null,null,"Documentaţii-suport şi cheltuieli pentru obţinerea de avize, acorduri şi\nautorizaţii",null,null,null,null,null,null,null,null,null,null,null,null,null,null,null,null,null,null,null,null,null,null,null,null,null,null,null,null,null,null,null,null,null,null,null,null,null,{"$f":"AQ13+AQ14+AQ15+AQ18+AQ19+AQ20+AQ21","v":0},null,null,null,null,null,null,null,null,{"$f":"AZ13+AZ14+AZ15+AZ16+AZ17+AZ18+AZ19+AZ20+AZ21","v":0}]
[null,null,null,null,"1. obţinerea/prelungirea valabilităţii ceritificatului de urbanism"]
[null,null,null,null,"2. obţinerea/prelungirea valabilităţii autorizaţiei de construire/desfiinţare"]
[null,null,null,null,"3. obţinerea avizelor şi acordurilor pentru racorduri şi branşamente la reţele publice\nde alimentare cu apă, canalizare, alimentare cu gaze, alimentare cu agent termic,\nenergie electrică, telefonie"]
[null,null,null,null,"4. obţinerea certificatului de nomenclatură stradală şi adresă"]
[null,null,null,null,"5. întocmirea documentaţiei, obţinerea numărului cadastral provizoriu şi\nînregistrarea terenului în cartea funciară"]
[null,null,null,null,"6. obţinerea actului administrativ al autorităţii competente pentru protecţia mediului"]
[null,null,null,null,"7. obţinerea avizului de protecţie civilă"]
[null,null,null,null,"8. avizul de specialitate în cazul obiectivelor de patrimoniu"]
[null,null,null,null,"9. alte avize, acorduri şi autorizaţii"]
["3.3",null,null,null,"Cheltuieli pentru expertizarea tehnică a construcţiilor existente, a structurilor\nşi/sau, după caz, a proiectelor tehnice, inclusiv întocmirea de către expertul\ntehnic a raportului de expertiză tehnică",null,null,null,null,null,null,null,null,null,null,null,null,null,null,null,null,null,null,null,null,null,null,null,null,null,null,null,null,null,null,null,null,null,null,null,null,null,0,null,null,null,null,null,null,null,null,0]
["3.4",null,null,null,"Cheltuieli pentru certificarea performanţei energetice şi auditul energetic al clădirilor",null,null,null,null,null,null,null,null,null,null,null,null,null,null,null,null,null,null,null,null,null,null,null,null,null,null,null,null,null,null,null,null,null,null,null,null,null,0,null,null,null,null,null,null,null,null,0]
["3.5",null,null,null,"Cheltuieli pentru proiectare",null,null,null,null,null,null,null,null,null,null,null,null,null,null,null,null,null,null,null,null,null,null,null,null,null,null,null,null,null,null,null,null,null,null,null,null,null,{"$f":"AQ25+AQ26+AQ27+AQ28+AQ29+AQ30","v":0},null,null,null,null,null,null,null,null,{"$f":"AZ25+AZ26+AZ27+AZ28+AZ29+AZ30","v":0}]
[null,null,null,null,"3.5.1 Temă de proiectare"]
[null,null,null,null,"3.5.2 Studiu de prefezabilitate"]
[null,null,null,null,"3.5.3 Studiu de fezabilitate/documentaţie de avizare a lucrărilor de intervenţii şi\ndeviz general"]
[null,null,null,null,"3.5.4 Documentaţiile tehnice necesare în vederea obţinerii avizelor/acordurilor/\nautorizaţiilor"]
[null,null,null,null,"3.5.5 Verificarea tehnică de calitate a proiectului tehnic şi a detaliilor de execuţie"]
[null,null,null,null,"3.5.6 Proiect tehnic şi detalii de execuţie"]
["3.6",null,null,null,"Cheltuieli aferente organizării şi derulării procedurilor de achiziţii publice",null,null,null,null,null,null,null,null,null,null,null,null,null,null,null,null,null,null,null,null,null,null,null,null,null,null,null,null,null,null,null,null,null,null,null,null,null,null,null,null,null,null,null,null,null,null,{"$f":"AZ32+AZ33+AZ34+AZ35","v":0}]
[null,null,null,null,"1. Cheltuieli aferente întocmirii documentaţiei de atribuire şi multiplicării acesteia (exclusiv cele cumpărate de ofertanţi)"]
[null,null,null,null,"2. Cheltuieli cu onorariile, transportul, cazarea şi diurna membrilor desemnaţi în comisiile de evaluare"]
[null,null,null,null,"3. Anunţuri de intenţie, de participare şi de atribuire a contractelor, corespondenţă\nprin poştă, fax, poştă electronică în legătură cu procedurile de achiziţie publică"]
[null,null,null,null,"4. Cheltuieli aferente organizării şi derulării procedurilor de achiziţii publice"]
["3.7",null,null,null,"Cheltuieli pentru consultanţă",null,null,null,null,null,null,null,null,null,null,null,null,null,null,null,null,null,null,null,null,null,null,null,null,null,null,null,null,null,null,null,null,null,null,null,null,null,{"$f":"AQ37","v":0},null,null,null,null,null,null,null,null,{"$f":"AZ37+AZ38","v":0}]
[null,null,null,null,"3.7.1 Managementul de proiect pentru obiectivul de investiţii"]
[null,null,null,null,"3.7.2 Auditul financiar"]
["3.8",null,null,null,"Cheltuieli pentru asistenţă tehnică",null,null,null,null,null,null,null,null,null,null,null,null,null,null,null,null,null,null,null,null,null,null,null,null,null,null,null,null,null,null,null,null,null,null,null,null,null,{"$f":"AQ40+AQ43","v":0},null,null,null,null,null,null,null,null,{"$f":"AZ40+AZ43","v":0}]
[null,null,null,null,"3.8.1. Asistenţă tehnică din partea proiectantului",null,null,null,null,null,null,null,null,null,null,null,null,null,null,null,null,null,null,null,null,null,null,null,null,null,null,null,null,null,null,null,null,null,null,null,null,null,{"$f":"AQ41+AQ42","v":0},null,null,null,null,null,null,null,null,{"$f":"AZ41+AZ42","v":0}]
[null,null,null,null,"    1.1. pe perioada de execuţie a lucrărilor"]
[null,null,null,null,"    1.2. pentru participarea proiectantului la fazele incluse în programul de control al\nlucrărilor de execuţie, avizat de către Inspectoratul de Stat în Construcţii"]
[null,null,null,null,"3.8.2 Dirigenţie de şantier, asigurată de personal tehnic de specialitate, autorizat"]
[null,null,null,null,"Total valoare fără TVA",null,null,null,null,null,null,null,null,null,null,null,null,null,null,null,null,null,null,null,null,null,null,null,null,null,null,null,null,null,null,null,null,null,null,null,null,null,{"$f":"AQ39+AQ36+AQ24+AQ23+AQ22+AQ12+AQ8","v":0},null,null,null,null,null,null,null,null,{"$f":"AZ39+AZ36+AZ31+AZ24+AZ23+AZ22+AZ12+AZ8","v":0}]
[null,null,null,null,"Valoare TVA (aferentă cheltuielilor eligibile şi neeligibile)"]
["TOTAL DEVIZ FINANCIAR 1 (inclusiv TVA)",null,null,null,null,null,null,null,null,null,null,null,null,null,null,null,null,null,null,null,null,null,null,null,null,null,null,null,null,null,null,null,null,null,null,null,null,null,null,null,null,null,{"$f":"AQ44+AZ44+AQ45+AZ45","v":0}]
[]
[null,null,null,null,null,null,null,null,null,null,null,null,null,null,null,null,null,null,null,null,null,null,null,null,null,null,null,null,null,null,null,null,null,null,null,null,null,null,null,null,null,null,"Anexa A1\nHG 907/2016"]
[]
["Deviz financiar- Capitolul 3 - Cheltuieli pentru proiectare şi asistenţa tehnică - EURO"]
[]
[]
["(Titlu deviz)"]
["Nr.crt",null,null,null,"Specificaţie",null,null,null,null,null,null,null,null,null,null,null,null,null,null,null,null,null,null,null,null,null,null,null,null,null,null,null,null,null,null,null,null,null,null,null,null,null,"Valoare eligibilă",null,null,null,null,null,null,null,null,"Valoare\nneeligibilă"]
["3.1",null,null,null,"Cheltuieli pentru studii - total din care:",null,null,null,null,null,null,null,null,null,null,null,null,null,null,null,null,null,null,null,null,null,null,null,null,null,null,null,null,null,null,null,null,null,null,null,null,null,{"$f":"AQ56+AQ57+AQ58","v":0},null,null,null,null,null,null,null,null,{"$f":"AZ56+AZ57+AZ58","v":0}]
[null,null,null,null,"3.1.1 Studii de teren: studii geotehnice, geologice, hidrologice, hidrogeotehnice,\nfotogrammetrice, topografica şi de stabilitate ale terenului pe care se amplasează obiectivul de investiţie "]
[null,null,null,null,"3.1.2 Raport privind impactul asupra mediului"]
[null,null,null,null,"3.1.3 Studii de specialitate necesare în funcţie de specificul investiţiei"]
["3.2",null,null,null,"Documentaţii-suport şi cheltuieli pentru obţinerea de avize, acorduri şi\nautorizaţii",null,null,null,null,null,null,null,null,null,null,null,null,null,null,null,null,null,null,null,null,null,null,null,null,null,null,null,null,null,null,null,null,null,null,null,null,null,{"$f":"AQ60+AQ61+AQ62+AQ65+AQ66+AQ67+AQ68","v":0},null,null,null,null,null,null,null,null,{"$f":"AZ60+AZ61+AZ62+AZ63+AZ64+AZ65+AZ66+AZ67+AZ68","v":0}]
[null,null,null,null,"1. obţinerea/prelungirea valabilităţii ceritificatului de urbanism"]
[null,null,null,null,"2. obţinerea/prelungirea valabilităţii autorizaţiei de construire/desfiinţare"]
[null,null,null,null,"3. obţinerea avizelor şi acordurilor pentru racorduri şi branşamente la reţele publice\nde alimentare cu apă, canalizare, alimentare cu gaze, alimentare cu agent termic,\nenergie electrică, telefonie"]
[null,null,null,null,"4. obţinerea certificatului de nomenclatură stradală şi adresă"]
[null,null,null,null,"5. întocmirea documentaţiei, obţinerea numărului cadastral provizoriu şi\nînregistrarea terenului în cartea funciară"]
[null,null,null,null,"6. obţinerea actului administrativ al autorităţii competente pentru protecţia mediului"]
[null,null,null,null,"7. obţinerea avizului de protecţie civilă"]
[null,null,null,null,"8. avizul de specialitate în cazul obiectivelor de patrimoniu"]
[null,null,null,null,"9. alte avize, acorduri şi autorizaţii"]
["3.3",null,null,null,"Cheltuieli pentru expertizarea tehnică a construcţiilor existente, a structurilor\nşi/sau, după caz, a proiectelor tehnice, inclusiv întocmirea de către expertul\ntehnic a raportului de expertiză tehnică",null,null,null,null,null,null,null,null,null,null,null,null,null,null,null,null,null,null,null,null,null,null,null,null,null,null,null,null,null,null,null,null,null,null,null,null,null,0,null,null,null,null,null,null,null,null,0]
["3.4",null,null,null,"Cheltuieli pentru certificarea performanţei energetice şi auditul energetic al clădirilor",null,null,null,null,null,null,null,null,null,null,null,null,null,null,null,null,null,null,null,null,null,null,null,null,null,null,null,null,null,null,null,null,null,null,null,null,null,0,null,null,null,null,null,null,null,null,0]
["3.5",null,null,null,"Cheltuieli pentru proiectare",null,null,null,null,null,null,null,null,null,null,null,null,null,null,null,null,null,null,null,null,null,null,null,null,null,null,null,null,null,null,null,null,null,null,null,null,null,{"$f":"AQ72+AQ73+AQ74+AQ75+AQ76+AQ77","v":0},null,null,null,null,null,null,null,null,{"$f":"AZ72+AZ73+AZ74+AZ75+AZ76+AZ77","v":0}]
[null,null,null,null,"3.5.1 Temă de proiectare"]
[null,null,null,null,"3.5.2 Studiu de prefezabilitate"]
[null,null,null,null,"3.5.3 Studiu de fezabilitate/documentaţie de avizare a lucrărilor de intervenţii şi\ndeviz general"]
[null,null,null,null,"3.5.4 Documentaţiile tehnice necesare în vederea obţinerii avizelor/acordurilor/\nautorizaţiilor"]
[null,null,null,null,"3.5.5 Verificarea tehnică de calitate a proiectului tehnic şi a detaliilor de execuţie"]
[null,null,null,null,"3.5.6 Proiect tehnic şi detalii de execuţie"]
["3.6",null,null,null,"Cheltuieli aferente organizării şi derulării procedurilor de achiziţii publice",null,null,null,null,null,null,null,null,null,null,null,null,null,null,null,null,null,null,null,null,null,null,null,null,null,null,null,null,null,null,null,null,null,null,null,null,null,null,null,null,null,null,null,null,null,null,{"$f":"AZ79+AZ80+AZ81+AZ82","v":0}]
[null,null,null,null,"1. Cheltuieli aferente întocmirii documentaţiei de atribuire şi multiplicării acesteia (exclusiv cele cumpărate de ofertanţi)"]
[null,null,null,null,"2. Cheltuieli cu onorariile, transportul, cazarea şi diurna membrilor desemnaţi în comisiile de evaluare"]
[null,null,null,null,"3. Anunţuri de intenţie, de participare şi de atribuire a contractelor, corespondenţă\nprin poştă, fax, poştă electronică în legătură cu procedurile de achiziţie publică"]
[null,null,null,null,"4. Cheltuieli aferente organizării şi derulării procedurilor de achiziţii publice"]
["3.7",null,null,null,"Cheltuieli pentru consultanţă",null,null,null,null,null,null,null,null,null,null,null,null,null,null,null,null,null,null,null,null,null,null,null,null,null,null,null,null,null,null,null,null,null,null,null,null,null,{"$f":"AQ84","v":0},null,null,null,null,null,null,null,null,{"$f":"AZ84+AZ85","v":0}]
[null,null,null,null,"3.7.1 Managementul de proiect pentru obiectivul de investiţii"]
[null,null,null,null,"3.7.2 Auditul financiar"]
["3.8",null,null,null,"Cheltuieli pentru asistenţă tehnică",null,null,null,null,null,null,null,null,null,null,null,null,null,null,null,null,null,null,null,null,null,null,null,null,null,null,null,null,null,null,null,null,null,null,null,null,null,{"$f":"AQ87+AQ90","v":0},null,null,null,null,null,null,null,null,{"$f":"AZ87+AZ90","v":0}]
[null,null,null,null,"3.8.1. Asistenţă tehnică din partea proiectantului",null,null,null,null,null,null,null,null,null,null,null,null,null,null,null,null,null,null,null,null,null,null,null,null,null,null,null,null,null,null,null,null,null,null,null,null,null,{"$f":"AQ88+AQ89","v":0},null,null,null,null,null,null,null,null,{"$f":"AZ88+AZ89","v":0}]
[null,null,null,null,"    1.1. pe perioada de execuţie a lucrărilor"]
[null,null,null,null,"    1.2. pentru participarea proiectantului la fazele incluse în programul de control al\nlucrărilor de execuţie, avizat de către Inspectoratul de Stat în Construcţii"]
[null,null,null,null,"3.8.2 Dirigenţie de şantier, asigurată de personal tehnic de specialitate, autorizat"]
[null,null,null,null,"Total valoare fără TVA",null,null,null,null,null,null,null,null,null,null,null,null,null,null,null,null,null,null,null,null,null,null,null,null,null,null,null,null,null,null,null,null,null,null,null,null,null,{"$f":"AQ86+AQ83+AQ71+AQ70+AQ69+AQ59+AQ55","v":0},null,null,null,null,null,null,null,null,{"$f":"AZ86+AZ83+AZ78+AZ71+AZ70+AZ69+AZ59+AZ55","v":0}]
[null,null,null,null,"Valoare TVA (aferentă cheltuielilor eligibile şi neeligibile)"]
["TOTAL DEVIZ FINANCIAR 1 (inclusiv TVA)",null,null,null,null,null,null,null,null,null,null,null,null,null,null,null,null,null,null,null,null,null,null,null,null,null,null,null,null,null,null,null,null,null,null,null,null,null,null,null,null,null,{"$f":"AQ91+AZ91+AQ92+AZ92","v":0}]

{"sheet":"Anexa 2","index":2,"n_rows":57,"n_cols":52,"rows_kept":57,"cut":false,"hidden":false,"merged":[[0,7,0,41],[1,7,1,41],[1,42,2,60],[2,7,2,41],[4,0,4,60],[3,0,3,60],[5,0,5,60],[6,0,6,60],[7,0,7,3],[7,4,7,41],[7,42,7,60],[8,0,8,41],[8,42,8,50],[8,51,8,60],[9,0,9,41],[9,42,9,50],[9,51,9,60],[10,0,10,3],[10,4,10,41],[10,42,10,50],[10,51,10,60],[11,0,11,3],[11,4,11,41],[11,42,11,50],[11,51,11,60],[12,0,12,3],[12,4,12,41],[12,42,12,50],[12,51,12,60],[13,0,13,3],[13,4,13,41],[13,42,13,50],[13,51,13,60],[14,0,14,3],[14,4,14,41],[14,42,14,50],[14,51,14,60],[15,0,15,3],[15,4,15,41],[15,42,15,50],[15,51,15,60],[16,0,16,60],[17,0,17,3],[17,4,17,41],[17,42,17,50],[17,51,17,60],[18,0,18,3],[18,4,18,41],[18,42,18,50],[18,51,18,60],[19,0,19,60],[20,0,20,3],[20,4,20,41],[20,42,20,50],[20,51,20,60],[21,0,21,3],[21,4,21,41],[21,42,21,50],[21,51,21,60],[22,0,22,3],[22,4,22,41],[22,42,22,50],[22,51,22,60],[23,0,23,3],[23,4,23,41],[23,42,23,50],[23,51,23,60],[24,0,24,3],[24,4,24,41],[24,42,24,50],[24,51,24,60],[25,0,25,41],[25,42,25,50],[25,51,25,60],[26,0,26,41],[26,42,26,50],[26,51,26,60],[27,0,27,41],[27,42,27,60],[29,7,29,41],[30,7,30,41],[30,42,31,60],[31,7,31,41],[33,0,33,60],[34,0,34,60],[32,0,32,60],[35,0,35,60],[36,0,36,3],[36,4,36,41],[36,42,36,60],[37,0,37,41],[37,42,37,50],[37,51,37,60],[38,0,38,41],[38,42,38,50],[38,51,38,60],[39,0,39,3],[39,4,39,41],[39,42,39,50],[39,51,39,60],[40,0,40,3],[40,4,40,41],[40,42,40,50],[40,51,40,60],[41,0,41,3],[41,4,41,41],[41,42,41,50],[41,51,41,60],[42,0,42,3],[42,4,42,41],[42,42,42,50],[42,51,42,60],[43,0,43,3],[43,4,43,41],[43,42,43,50],[43,51,43,60],[44,0,44,3],[44,4,44,41],[44,42,44,50],[44,51,44,60],[45,0,45,60],[46,0,46,3],[46,4,46,41],[46,42,46,50],[46,51,46,60],[47,0,47,3],[47,4,47,41],[47,42,47,50],[47,51,47,60],[48,0,48,60],[49,0,49,3],[49,4,49,41],[49,42,49,50],[49,51,49,60],[50,0,50,3],[50,4,50,41],[50,42,50,50],[50,51,50,60],[54,0,54,41],[54,42,54,50],[54,51,54,60],[55,0,55,41],[55,42,55,50],[55,51,55,60],[56,0,56,41],[56,42,56,60],[51,0,51,3],[51,4,51,41],[51,42,51,50],[51,51,51,60],[52,0,52,3],[52,4,52,41],[52,42,52,50],[52,51,52,60],[53,0,53,3],[53,4,53,41],[53,42,53,50],[53,51,53,60]]}
[]
[null,null,null,null,null,null,null,null,null,null,null,null,null,null,null,null,null,null,null,null,null,null,null,null,null,null,null,null,null,null,null,null,null,null,null,null,null,null,null,null,null,null,"Anexa A2\nHG 907/2016"]
[]
["DEVIZ PE OBIECT *"]
[]
[]
["(Descriere obiect de construcţie)"]
["Nr. crt.",null,null,null,"Denumire",null,null,null,null,null,null,null,null,null,null,null,null,null,null,null,null,null,null,null,null,null,null,null,null,null,null,null,null,null,null,null,null,null,null,null,null,null,"Valoarea pe categorii de lucrări, fară TVA - EURO"]
["Cap. 4 + Cheltuieli pentru investiţia de bază",null,null,null,null,null,null,null,null,null,null,null,null,null,null,null,null,null,null,null,null,null,null,null,null,null,null,null,null,null,null,null,null,null,null,null,null,null,null,null,null,null,"Valoare eligibilă",null,null,null,null,null,null,null,null,"Valoare\nneeligibilă"]
["   I - LUCRĂRI DE CONSTRUCŢII ŞI INSTALAŢII"]
["4.1",null,null,null,"Construcţii şi instalaţii"]
[null,null,null,null,"4.1.1 Terasamente, sistematizare pe verticală şi amenajări exterioare"]
[null,null,null,null,"4.1.2 Rezistenţă"]
[null,null,null,null,"4.1.3 Arhitectură"]
[null,null,null,null,"4.1.4 Instalaţii"]
[null,null,null,null,"TOTAL I ( fără TVA)",null,null,null,null,null,null,null,null,null,null,null,null,null,null,null,null,null,null,null,null,null,null,null,null,null,null,null,null,null,null,null,null,null,null,null,null,null,{"$f":"SUM(AQ12:AY15)","v":0},null,null,null,null,null,null,null,null,{"$f":"SUM(AZ12:BI15)","v":0}]
["   II - MONTAJ"]
["4.2",null,null,null,"Montaj utilaje şi echipamente tehnologice"]
[null,null,null,null,"TOTAL II ( fără TVA)",null,null,null,null,null,null,null,null,null,null,null,null,null,null,null,null,null,null,null,null,null,null,null,null,null,null,null,null,null,null,null,null,null,null,null,null,null,{"$f":"SUM(AQ18)","v":0},null,null,null,null,null,null,null,null,{"$f":"SUM(AZ18)","v":0}]
["   III - PROCURARE"]
["4.3",null,null,null,"Utilaje, echipamente tehnologice şi funcţionale care necesită montaj"]
["4.4",null,null,null,"Utilaje, echipamente tehnologice şi funcţionale care nu necesită\nmontaj şi echipamente de transport"]
["4.5",null,null,null,"Dotări"]
["4.6",null,null,null,"Active necorporale"]
[null,null,null,null,"TOTAL III ( fără TVA)",null,null,null,null,null,null,null,null,null,null,null,null,null,null,null,null,null,null,null,null,null,null,null,null,null,null,null,null,null,null,null,null,null,null,null,null,null,{"$f":"SUM(AQ21:AY24)","v":0},null,null,null,null,null,null,null,null,{"$f":"SUM(AZ21:BI24)","v":0}]
["TOTAL ( TOTAL I + TOTAL II +TOTAL III) fără TVA",null,null,null,null,null,null,null,null,null,null,null,null,null,null,null,null,null,null,null,null,null,null,null,null,null,null,null,null,null,null,null,null,null,null,null,null,null,null,null,null,null,{"$f":"AQ25+AQ19+AQ16","v":0},null,null,null,null,null,null,null,null,{"$f":"AZ25+AZ19+AZ16","v":0}]
["TVA aferent cheltuielilor eligibile şi neeligibile"]
["TOTAL DEVIZ PE OBIECT (inclusiv TVA)",null,null,null,null,null,null,null,null,null,null,null,null,null,null,null,null,null,null,null,null,null,null,null,null,null,null,null,null,null,null,null,null,null,null,null,null,null,null,null,null,null,{"$f":"AQ26+AZ26+AQ27+AZ27","v":0}]
[]
[]
[null,null,null,null,null,null,null,null,null,null,null,null,null,null,null,null,null,null,null,null,null,null,null,null,null,null,null,null,null,null,null,null,null,null,null,null,null,null,null,null,null,null,"Anexa A2\nHG 907/2016"]
[]
["DEVIZ PE OBIECT *"]
[]
[]
["(Descriere obiect de construcţie)"]
["Nr. crt.",null,null,null,"Denumire",null,null,null,null,null,null,null,null,null,null,null,null,null,null,null,null,null,null,null,null,null,null,null,null,null,null,null,null,null,null,null,null,null,null,null,null,null,"Valoarea pe categorii de lucrări, fară TVA - EURO"]
["Cap. 4 + Cheltuieli pentru investiţia de bază",null,null,null,null,null,null,null,null,null,null,null,null,null,null,null,null,null,null,null,null,null,null,null,null,null,null,null,null,null,null,null,null,null,null,null,null,null,null,null,null,null,"Valoare eligibilă",null,null,null,null,null,null,null,null,"Valoare\nneeligibilă"]
["   I - LUCRĂRI DE CONSTRUCŢII ŞI INSTALAŢII"]
["4.1",null,null,null,"Construcţii şi instalaţii"]
[null,null,null,null,"4.1.1 Terasamente, sistematizare pe verticală şi amenajări exterioare"]
[null,null,null,null,"4.1.2 Rezistenţă"]
[null,null,null,null,"4.1.3 Arhitectură"]
[null,null,null,null,"4.1.4 Instalaţii"]
[null,null,null,null,"TOTAL I ( fără TVA)",null,null,null,null,null,null,null,null,null,null,null,null,null,null,null,null,null,null,null,null,null,null,null,null,null,null,null,null,null,null,null,null,null,null,null,null,null,{"$f":"SUM(AQ41:AY44)","v":0},null,null,null,null,null,null,null,null,{"$f":"SUM(AZ41:BI44)","v":0}]
["   II - MONTAJ"]
["4.2",null,null,null,"Montaj utilaje şi echipamente tehnologice"]
[null,null,null,null,"TOTAL II ( fără TVA)",null,null,null,null,null,null,null,null,null,null,null,null,null,null,null,null,null,null,null,null,null,null,null,null,null,null,null,null,null,null,null,null,null,null,null,null,null,{"$f":"SUM(AQ47)","v":0},null,null,null,null,null,null,null,null,{"$f":"SUM(AZ47)","v":0}]
["   III - PROCURARE"]
["4.3",null,null,null,"Utilaje, echipamente tehnologice şi funcţionale care necesită montaj"]
["4.4",null,null,null,"Utilaje, echipamente tehnologice şi funcţionale care nu necesită\nmontaj şi echipamente de transport"]
["4.5",null,null,null,"Dotări"]
["4.6",null,null,null,"Active necorporale"]
[null,null,null,null,"TOTAL III ( fără TVA)",null,null,null,null,null,null,null,null,null,null,null,null,null,null,null,null,null,null,null,null,null,null,null,null,null,null,null,null,null,null,null,null,null,null,null,null,null,{"$f":"SUM(AQ50:AY53)","v":0},null,null,null,null,null,null,null,null,{"$f":"SUM(AZ50:BI53)","v":0}]
["TOTAL ( TOTAL I + TOTAL II +TOTAL III) fără TVA",null,null,null,null,null,null,null,null,null,null,null,null,null,null,null,null,null,null,null,null,null,null,null,null,null,null,null,null,null,null,null,null,null,null,null,null,null,null,null,null,null,{"$f":"AQ54+AQ48+AQ45","v":0},null,null,null,null,null,null,null,null,{"$f":"AZ54+AZ48+AZ45","v":0}]
["TVA aferent cheltuielilor eligibile şi neeligibile"]
["TOTAL DEVIZ PE OBIECT (inclusiv TVA)",null,null,null,null,null,null,null,null,null,null,null,null,null,null,null,null,null,null,null,null,null,null,null,null,null,null,null,null,null,null,null,null,null,null,null,null,null,null,null,null,null,{"$f":"AQ55+AZ55+AQ56+AZ56","v":0}]

{"sheet":"Anexa 3","index":3,"n_rows":79,"n_cols":52,"rows_kept":79,"cut":false,"hidden":false,"merged":[[1,7,1,41],[1,42,2,60],[2,7,2,41],[4,0,4,60],[5,0,5,60],[3,0,3,60],[6,0,6,60],[7,0,7,60],[8,0,8,3],[8,4,8,41],[8,42,8,50],[8,51,8,60],[9,0,9,3],[9,4,9,41],[9,42,9,50],[9,51,9,60],[10,0,10,3],[10,4,10,41],[10,42,10,50],[10,51,10,60],[11,0,11,3],[11,4,11,41],[11,42,11,50],[11,51,11,60],[12,0,12,3],[12,4,12,41],[12,42,12,50],[12,51,12,60],[13,0,13,3],[13,4,13,41],[13,42,13,50],[13,51,13,60],[14,0,14,3],[14,4,14,41],[14,42,14,50],[14,51,14,60],[15,0,15,3],[15,4,15,41],[15,42,15,50],[15,51,15,60],[16,0,16,3],[16,4,16,41],[16,42,16,50],[16,51,16,60],[17,0,17,3],[17,4,17,41],[17,42,17,50],[17,51,17,60],[18,0,18,3],[18,4,18,41],[18,42,18,50],[18,51,18,60],[19,0,19,3],[19,4,19,41],[19,42,19,50],[19,51,19,60],[20,0,20,41],[20,42,20,60],[21,0,21,3],[21,4,21,41],[21,42,21,50],[21,51,21,60],[22,0,22,60],[23,0,23,3],[23,4,23,41],[23,42,23,50],[23,51,23,60],[24,0,24,60],[25,0,25,3],[25,4,25,41],[25,42,25,50],[25,51,25,60],[26,0,26,3],[26,4,26,41],[26,42,26,50],[26,51,26,60],[27,0,27,3],[27,4,27,41],[27,42,27,50],[27,51,27,60],[28,0,28,3],[28,4,28,41],[28,42,28,50],[28,51,28,60],[29,0,29,3],[29,4,29,41],[29,42,29,50],[29,51,29,60],[30,0,30,3],[30,4,30,41],[30,42,30,50],[30,51,30,60],[31,0,31,3],[31,4,31,41],[31,42,31,50],[31,51,31,60],[32,0,32,3],[32,4,32,41],[32,42,32,50],[32,51,32,60],[33,0,33,3],[33,4,33,41],[33,42,33,50],[33,51,33,60],[34,0,34,3],[34,4,34,41],[34,42,34,50],[34,51,34,60],[35,0,35,3],[35,4,35,41],[35,42,35,50],[35,51,35,60],[36,0,36,3],[36,4,36,41],[36,42,36,50],[36,51,36,60],[37,0,37,3],[37,4,37,41],[37,42,37,50],[37,51,37,60],[38,0,38,3],[38,4,38,41],[38,42,38,60],[41,7,41,41],[41,42,42,60],[42,7,42,41],[43,0,43,60],[44,0,44,60],[45,0,45,60],[46,0,46,60],[47,0,47,60],[48,0,48,3],[48,4,48,41],[48,42,48,50],[48,51,48,60],[49,0,49,3],[49,4,49,41],[49,42,49,50],[49,51,49,60],[50,0,50,3],[50,4,50,41],[50,42,50,50],[50,51,50,60],[51,0,51,3],[51,4,51,41],[51,42,51,50],[51,51,51,60],[52,0,52,3],[52,4,52,41],[52,42,52,50],[52,51,52,60],[53,0,53,3],[53,4,53,41],[53,42,53,50],[53,51,53,60],[54,0,54,3],[54,4,54,41],[54,42,54,50],[54,51,54,60],[55,0,55,3],[55,4,55,41],[55,42,55,50],[55,51,55,60],[56,0,56,3],[56,4,56,41],[56,42,56,50],[56,51,56,60],[57,0,57,3],[57,4,57,41],[57,42,57,50],[57,51,57,60],[58,0,58,3],[58,4,58,41],[58,42,58,50],[58,51,58,60],[59,0,59,3],[59,4,59,41],[59,42,59,50],[59,51,59,60],[60,0,60,41],[60,42,60,60],[61,0,61,3],[61,4,61,41],[61,42,61,50],[61,51,61,60],[62,0,62,60],[63,0,63,3],[63,4,63,41],[63,42,63,50],[63,51,63,60],[64,0,64,60],[65,0,65,3],[65,4,65,41],[65,42,65,50],[65,51,65,60],[66,0,66,3],[66,4,66,41],[66,42,66,50],[66,51,66,60],[67,0,67,3],[67,4,67,41],[67,42,67,50],[67,51,67,60],[68,0,68,3],[68,4,68,41],[68,42,68,50],[68,51,68,60],[69,0,69,3],[69,4,69,41],[69,42,69,50],[69,51,69,60],[70,0,70,3],[70,4,70,41],[70,42,70,50],[70,51,70,60],[71,0,71,3],[71,4,71,41],[71,42,71,50],[71,51,71,60],[72,0,72,3],[72,4,72,41],[72,42,72,50],[72,51,72,60],[73,0,73,3],[73,4,73,41],[73,42,73,50],[73,51,73,60],[74,0,74,3],[74,4,74,41],[74,42,74,50],[74,51,74,60],[75,0,75,3],[75,4,75,41],[75,42,75,50],[75,51,75,60],[76,0,76,3],[76,4,76,41],[76,42,76,50],[76,51,76,60],[77,0,77,3],[77,4,77,41],[77,42,77,50],[77,51,77,60],[78,0,78,3],[78,4,78,41],[78,42,78,60]]}
[]
[null,null,null,null,null,null,null,null,null,null,null,null,null,null,null,null,null,null,null,null,null,null,null,null,null,null,null,null,null,null,null,null,null,null,null,null,null,null,null,null,null,null,"Anexa A3\nHG 907/2016"]
[]
[]
[]
[]
["(Titlu deviz)"]
["Deviz capitolul 2- Cheltuieli pentru asigurarea utilităţilor necesare obiectivului - EURO"]
["Nr.crt",null,null,null,"Specificaţie",null,null,null,null,null,null,null,null,null,null,null,null,null,null,null,null,null,null,null,null,null,null,null,null,null,null,null,null,null,null,null,null,null,null,null,null,null,"Valoare eligibilă",null,null,null,null,null,null,null,null,"Valoare\nneeligibilă"]
[1,null,null,null,"Alimentare cu apă"]
[2,null,null,null,"Canalizare"]
[3,null,null,null,"Alimentare cu gaze naturale"]
[4,null,null,null,"Alimentare cu agent termic"]
[5,null,null,null,"Alimentare cu energie electrică"]
[6,null,null,null,"Telecomunicaţii (telefonie, radio-tv,etc)"]
[7,null,null,null,"Drumuri de acces"]
[8,null,null,null,"Căi ferate industriale"]
[9,null,null,null,"Alte utilități"]
[null,null,null,null,"TOTAL DEVIZ CAPITOLUL 2",null,null,null,null,null,null,null,null,null,null,null,null,null,null,null,null,null,null,null,null,null,null,null,null,null,null,null,null,null,null,null,null,null,null,null,null,null,{"$f":"SUM(AQ10:AY18)","v":0},null,null,null,null,null,null,null,null,{"$f":"SUM(AZ10:BI18)","v":0}]
[null,null,null,null,"Valoare TVA aferentă cheltuielilor eligibile şi neeligibile"]
["TOTAL DEVIZ CAPITOLUL 2 (inclusiv TVA)",null,null,null,null,null,null,null,null,null,null,null,null,null,null,null,null,null,null,null,null,null,null,null,null,null,null,null,null,null,null,null,null,null,null,null,null,null,null,null,null,null,{"$f":"AQ19+AZ19+AQ20+AZ20","v":0}]
[]
[" Deviz capitolul 5 - Alte cheltuieli - EURO"]
["Nr.crt",null,null,null,"Specificaţie",null,null,null,null,null,null,null,null,null,null,null,null,null,null,null,null,null,null,null,null,null,null,null,null,null,null,null,null,null,null,null,null,null,null,null,null,null,"Valoare eligibilă",null,null,null,null,null,null,null,null,"Valoare\nneeligibilă"]
[]
["5.1 ",null,null,null,"Organizare de şantier",null,null,null,null,null,null,null,null,null,null,null,null,null,null,null,null,null,null,null,null,null,null,null,null,null,null,null,null,null,null,null,null,null,null,null,null,null,{"$f":"SUM(AQ27:AY28)","v":0},null,null,null,null,null,null,null,null,{"$f":"SUM(AZ27:BI28)","v":0}]
[null,null,null,null,"5.1.1 Lucrări de construcţii şi instalaţii aferente organizării de şantier"]
[null,null,null,null,"5.1.2 Cheltuieli conexe organizării de şantier"]
["5.2",null,null,null,"Comisioane, cote, taxe, costul creditului",null,null,null,null,null,null,null,null,null,null,null,null,null,null,null,null,null,null,null,null,null,null,null,null,null,null,null,null,null,null,null,null,null,null,null,null,null,{"$f":"SUM(AQ31,AQ32,AQ34)","v":0},null,null,null,null,null,null,null,null,{"$f":"SUM(AZ30:BI34)","v":0}]
[null,null,null,null,"5.2.1. Comisioanele şi dobânzile aferente creditului băncii finanţatoare",null,null,null,null,null,null,null,null,null,null,null,null,null,null,null,null,null,null,null,null,null,null,null,null,null,null,null,null,null,null,null,null,null,null,null,null,null,1]
[null,null,null,null,"5.2.2. Cota aferentă ISC pentru controlul calităţii lucrărilor de\nconstrucţii"]
[null,null,null,null,"5.2.3. Cota aferentă ISC pentru controlul statului în amenajarea teritoriului, urbanism şi pentru autorizarea lucrărilor de construcţii"]
[null,null,null,null,"5.2.4. Cota aferentă Casei Sociale a Constructorilor - CSC"]
[null,null,null,null,"5.2.5. Taxe pentru acorduri, avize conforme şi autorizaţia de construire/desfiinţare"]
["5.3",null,null,null," Cheltuieli diverse si neprevazute"]
["5.3",null,null,null,"Cheltuieli pentru informare și publicitate",null,null,null,null,null,null,null,null,null,null,null,null,null,null,null,null,null,null,null,null,null,null,null,null,null,null,null,null,null,null,null,null,null,null,null,null,null,0,null,null,null,null,null,null,null,null,0]
[null,null,null,null,"TOTAL DEVIZ CAPITOLUL 5",null,null,null,null,null,null,null,null,null,null,null,null,null,null,null,null,null,null,null,null,null,null,null,null,null,null,null,null,null,null,null,null,null,null,null,null,null,{"$f":"AQ26+AQ29+AQ36","v":0},null,null,null,null,null,null,null,null,{"$f":"AZ36+AZ35+AZ29+AZ26","v":0}]
[null,null,null,null,"VALOARE TVA aferentă cheltuielilor eligibile şi neeligibile"]
[null,null,null,null,"TOTAL DEVIZ CAPITOLUL 5 ( inclusiv TVA)",null,null,null,null,null,null,null,null,null,null,null,null,null,null,null,null,null,null,null,null,null,null,null,null,null,null,null,null,null,null,null,null,null,null,null,null,null,{"$f":"AQ37+AZ37+AQ38+AZ38","v":0}]
[]
[]
[null,null,null,null,null,null,null,null,null,null,null,null,null,null,null,null,null,null,null,null,null,null,null,null,null,null,null,null,null,null,null,null,null,null,null,null,null,null,null,null,null,null,"Anexa A3\nHG 907/2016"]
[]
[]
[]
[]
["(Titlu deviz)"]
["Deviz capitolul 2- Cheltuieli pentru asigurarea utilităţilor necesare obiectivului - EURO"]
["Nr.crt",null,null,null,"Specificaţie",null,null,null,null,null,null,null,null,null,null,null,null,null,null,null,null,null,null,null,null,null,null,null,null,null,null,null,null,null,null,null,null,null,null,null,null,null,"Valoare eligibilă",null,null,null,null,null,null,null,null,"Valoare\nneeligibilă"]
[1,null,null,null,"Alimentare cu apă"]
[2,null,null,null,"Canalizare"]
[3,null,null,null,"Alimentare cu gaze naturale"]
[4,null,null,null,"Alimentare cu agent termic"]
[5,null,null,null,"Alimentare cu energie electrică"]
[6,null,null,null,"Telecomunicaţii (telefonie, radio-tv,etc)"]
[7,null,null,null,"Drumuri de acces"]
[8,null,null,null,"Căi ferate industriale"]
[9,null,null,null,"Alte utilități"]
[null,null,null,null,"TOTAL DEVIZ CAPITOLUL 2",null,null,null,null,null,null,null,null,null,null,null,null,null,null,null,null,null,null,null,null,null,null,null,null,null,null,null,null,null,null,null,null,null,null,null,null,null,{"$f":"SUM(AQ50:AY58)","v":0},null,null,null,null,null,null,null,null,{"$f":"SUM(AZ50:BI58)","v":0}]
[null,null,null,null,"Valoare TVA aferentă cheltuielilor eligibile şi neeligibile"]
["TOTAL DEVIZ CAPITOLUL 2 (inclusiv TVA)",null,null,null,null,null,null,null,null,null,null,null,null,null,null,null,null,null,null,null,null,null,null,null,null,null,null,null,null,null,null,null,null,null,null,null,null,null,null,null,null,null,{"$f":"AQ59+AZ59+AQ60+AZ60","v":0}]
[]
[" Deviz capitolul 5 - Alte cheltuieli - EURO"]
["Nr.crt",null,null,null,"Specificaţie",null,null,null,null,null,null,null,null,null,null,null,null,null,null,null,null,null,null,null,null,null,null,null,null,null,null,null,null,null,null,null,null,null,null,null,null,null,"Valoare eligibilă",null,null,null,null,null,null,null,null,"Valoare\nneeligibilă"]
[]
["5.1 ",null,null,null,"Organizare de şantier",null,null,null,null,null,null,null,null,null,null,null,null,null,null,null,null,null,null,null,null,null,null,null,null,null,null,null,null,null,null,null,null,null,null,null,null,null,{"$f":"SUM(AQ67:AY68)","v":0},null,null,null,null,null,null,null,null,{"$f":"SUM(AZ67:BI68)","v":0}]
[null,null,null,null,"5.1.1 Lucrări de construcţii şi instalaţii aferente organizării de şantier"]
[null,null,null,null,"5.1.2 Cheltuieli conexe organizării de şantier"]
["5.2",null,null,null,"Comisioane, cote, taxe, costul creditului",null,null,null,null,null,null,null,null,null,null,null,null,null,null,null,null,null,null,null,null,null,null,null,null,null,null,null,null,null,null,null,null,null,null,null,null,null,{"$f":"SUM(AQ71,AQ72,AQ74)","v":0},null,null,null,null,null,null,null,null,{"$f":"SUM(AZ70:BI74)","v":0}]
[null,null,null,null,"5.2.1. Comisioanele şi dobânzile aferente creditului băncii finanţatoare",null,null,null,null,null,null,null,null,null,null,null,null,null,null,null,null,null,null,null,null,null,null,null,null,null,null,null,null,null,null,null,null,null,null,null,null,null,1]
[null,null,null,null,"5.2.2. Cota aferentă ISC pentru controlul calităţii lucrărilor de\nconstrucţii"]
[null,null,null,null,"5.2.3. Cota aferentă ISC pentru controlul statului în amenajarea teritoriului, urbanism şi pentru autorizarea lucrărilor de construcţii"]
[null,null,null,null,"5.2.4. Cota aferentă Casei Sociale a Constructorilor - CSC"]
[null,null,null,null,"5.2.5. Taxe pentru acorduri, avize conforme şi autorizaţia de construire/desfiinţare"]
["5.3",null,null,null," Cheltuieli diverse si neprevazute"]
["5.3",null,null,null,"Cheltuieli pentru informare și publicitate",null,null,null,null,null,null,null,null,null,null,null,null,null,null,null,null,null,null,null,null,null,null,null,null,null,null,null,null,null,null,null,null,null,null,null,null,null,0,null,null,null,null,null,null,null,null,0]
[null,null,null,null,"TOTAL DEVIZ CAPITOLUL 5",null,null,null,null,null,null,null,null,null,null,null,null,null,null,null,null,null,null,null,null,null,null,null,null,null,null,null,null,null,null,null,null,null,null,null,null,null,{"$f":"AQ66+AQ69+AQ76","v":0},null,null,null,null,null,null,null,null,{"$f":"AZ76+AZ75+AZ69+AZ66","v":0}]
[null,null,null,null,"VALOARE TVA aferentă cheltuielilor eligibile şi neeligibile"]
[null,null,null,null,"TOTAL DEVIZ CAPITOLUL 5 ( inclusiv TVA)",null,null,null,null,null,null,null,null,null,null,null,null,null,null,null,null,null,null,null,null,null,null,null,null,null,null,null,null,null,null,null,null,null,null,null,null,null,{"$f":"AQ77+AZ77+AQ78+AZ78","v":0}]